{"text_format":"1","workbook":"xlsx","n_sheets":17,"sheets":["PRVA STRAN","1. UVOD","2. IZVAJALEC in 3. ZAVEZANEC","4.SPLOŠNE ZNAČILNOSTI ","5. VZDRŽ. OBJEKTOV","6. MERITVE, INTERPRETACIJA HG.","7. MESTO,ČAS, NAČIN VZORČENJA","8. VRSTA MERITEV IN OBSEG PAR.","9. PREDČRPANJE IN VZOREČNJE","10. METODE, OPREMA","11.SPREMEMBE VSEB","12.OCENA TRENDOV","13. SKLEPNE UGOTOVITVE","14.PREDLOGI","15. POOBLASTILO","16. PRILOGE","Parametri"],"not_rendered":{"charts":0,"images":24,"macros":1,"external_links":0,"defined_names":17,"comments":1,"pivot_tables":0},"unopened":[],"bounds":{"document_bytes":16777216,"sheet_cells":100000,"rows_first":2000,"rows_last":500,"rows_between":2000,"halvings":0,"cell_chars":16384,"cell_head_chars":4096},"cells_cut":0,"cells_raw":0,"read":"whole","date_system":"1900"}

{"sheet":"PRVA STRAN","index":0,"n_rows":30,"n_cols":1,"rows_kept":30,"cut":false,"hidden":false,"merged":[[17,0,18,0]]}
["Datum in verzija poročila: 05. 10. 2022; ver. 1.8"]
[]
[]
[]
[]
[]
[]
[]
[]
[]
[]
[]
[]
[]
[]
[]
["POROČILO O OBRATOVALNEM MONITORINGU STANJA PODZEMNE VODE ZA NAPRAVO"]
["[DOPOLNITE]"]
[]
[]
[]
[]
[]
["ZA LETO   20XX"]
[]
[]
[]
[]
[]
["Kraj in datum"]

{"sheet":"1. UVOD","index":1,"n_rows":10,"n_cols":2,"rows_kept":10,"cut":false,"hidden":false,"merged":[[0,1,0,2]]}
["1.","UVODNO POGLAVJE"]
["1.1.","NASLOV POROČILA"]
["1.2.","EVIDENČNA ŠTEVILKA POROČILA"]
["1.3.","LETO IZVEDENEGA OBRATOVALNEGA MONITORINGA"]
["1.4.","VELJAVNI PREDPIS"]
["1.5.","VELJAVNI PREDPIS, KI UREJA OBRATOVALNI MONITORING STANJA PODZEMNE VODE "]
["1.6.","PROGRAM OBRATOVALNEGA MONITORINGA STANJA PODZEMNE VODE"]
["1.7.","IZHODIŠČNO POROČILO"]
["1.8.","IZDANA ODLOČBA ZA OBRATOVANJE NAPRAVE"]
["1.9.","IZVAJANJE OBRATOVALNEGA MONITORINGA STANJA POVRŠINSKIH VODA (da/ne)"]

{"sheet":"2. IZVAJALEC in 3. ZAVEZANEC","index":2,"n_rows":37,"n_cols":2,"rows_kept":37,"cut":false,"hidden":false,"merged":[]}
["2.","PODATKI O IZVAJALCU OBRATOVALNEGA MONITORINGA"]
[null,"Naziv pooblaščenega izvajalca: "]
[null,"Naslov pooblaščenega izvajalca"]
[null,"Ulica:"]
[null,"Hišna številka:"]
[null,"Poštna številka:"]
[null,"Ime pošte:"]
[null,"Identifikacijska številka za DDV:"]
[null,"Šifra dejavnosti izvajalca:"]
[null,"Izvajalec:"]
[null,"Odgovorna oseba:"]
[null,"Kontaktna oseba:"]
[null,"Telefon:"]
[null,"Fax:"]
[null,"Elektronski naslov:"]
[null,"Št. pooblastila:"]
[null,"Veljavnost:"]
[]
[null,"Naziv podizvajalca:"]
[null,"Odgovorna oseba:"]
[null,"Kontaktna oseba:"]
[null,"pobarvaj me"]
[3,"PODATKI O ZAVEZANCU OBRATOVALNEGA MONITORINGA"]
[null,"Naziv zavezanca monitoringa: "]
[null,"Naslov zavezanca monitoringa:"]
[null,"Ulica:"]
[null,"Hišna številka:"]
[null,"Poštna številka:"]
[null,"Ime pošte:"]
[null,"Identifikacijska številka za DDV:"]
[null,"Šifra dejavnosti zavezanca monitoringa:"]
[null,"Zavezanec:"]
[null,"Odgovorna oseba:"]
[null,"Kontaktna oseba:"]
[null,"Telefon:"]
[null,"Fax:"]
[null,"Elektronski naslov:"]

{"sheet":"4.SPLOŠNE ZNAČILNOSTI ","index":3,"n_rows":26,"n_cols":2,"rows_kept":26,"cut":false,"hidden":false,"merged":[[1,1,1,2],[7,1,7,2],[0,1,0,2]]}
["4.","SPLOŠNE ZNAČILNOSTI NAPRAVE"]
[null,"Opis naprave:"]
["4.1.","LOKACIJA NAPRAVE:"]
["4.2.","DEJAVNOST NAPRAVE:"]
["4.3.","NEUTRJENA TLA NA OBMOČJU NAPRAVE:"]
["4.4.","ODVODNJA VOD NA OBMOČJU NAPRAVE:"]
["4.5.","RABA PROSTORA V ZALEDJU NAPRAVE:"]
[null,"Hidrogeologija:"]
["4.6.","VODONOSNIKI NA OBMOČJU NAPRAVE:"]
["4.7.","TIP VODONOSNIKA NA OBMOČJU NAPRAVE:"]
["4.8.","HIDRODINAMSKI TIP VODONOSNIKA NA OBMOČJU NAPRAVE:"]
["4.9.","KOEFICIENT PREPUSTNOSTI VODONOSNIKOV (m/s):"]
["4.10.","UČINKOVITA POROZNOST (%) :"]
["4.11.","HITROST TOKA PODZEMNE VODE (m/s):"]
["4.12.","GRADIENT TOKA (/):"]
["4.13.","VODONOSNIKI V CILJNI HIDROGEOLOŠKI CONI:"]
["4.14.","HIDRODINAMSKI TIP VODONOSNIKA V CILJNI HIDROGEOLOŠKI CONI:"]
["4.15.","KOLIČINA PODZEMNE VODE POD NAPRAVO (m3/s):"]
["4.16.","VODOVARSTVENA OBMOČJA:"]
["4.17.","VODNO ZAJETJE S PODELJENIM VODNIM DOVOLJENJEM:"]
["4.18.","OBMOČJE NATURA OZ. EKOLOŠKO POMEMBNO OBMOČJE:"]
["4.19.","ODDALJENOST OD POVRŠINSKIH VODOTOKOV:"]
["4.20.","HIDRODINAMSKI ODNOS PODZEMNE IN POVRŠINSKE VODE"]
["4.21.","PRETOK POVRŠINSKEGA VODOTOKA:"]
["4.22.","GLOBINA OD DNA NAPRAVE DO PODZEMNE VODE:"]
["4.23.","SMER TOKA PODZEMNE VODE:"]

{"sheet":"5. VZDRŽ. OBJEKTOV","index":4,"n_rows":8,"n_cols":9,"rows_kept":8,"cut":false,"hidden":false,"merged":[[7,1,7,6],[8,1,11,6],[0,1,0,4]]}
["5.","VZDRŽEVANJE OBJEKTOV ZA IZVAJANJE OBRATOVALNEGA MONITORINGA"]
[]
["5.1.","Merilno mesto","Čiščenje (DA/NE)","Popravilo sond za zvezno merjenje HG parametrov (DA/NE)","Reaktivacija (DA/NE)","Sanacija (DA/NE)","Ustreznost (DA/NE)","Predlogi","Ostalo"]
[]
[]
[]
[null,"pobarvaj me"]
["5.2.","Opis vzdrževalnih del na merilnih mestih:"]

{"sheet":"6. MERITVE, INTERPRETACIJA HG.","index":5,"n_rows":56,"n_cols":12,"rows_kept":56,"cut":false,"hidden":false,"merged":[[55,1,55,5],[56,1,71,5],[2,0,3,0],[6,0,7,0],[4,0,5,0],[2,1,3,1],[4,1,5,1],[6,1,7,1],[16,2,16,3],[16,4,16,5],[37,1,52,5],[15,2,15,11],[26,10,26,11],[25,2,25,11],[36,1,36,5],[26,2,26,3],[16,10,16,11],[26,4,26,5],[16,6,16,7],[16,8,16,9],[26,6,26,7],[26,8,26,9]]}
["6.","MERITVE IN INTERPRETACIJA HIDROGEOLOŠKIH PARAMETROV"]
[null,null,null,null,"izvajalec HG meritev"]
["6.1.","NAČIN MERITEV HIDROGEOLOŠKIH PARAMETROV (GLADINE PODZEMNE VODE oziroma PRETOK):","avtomatsko"]
[null,null,"ročno"]
["6.2.","NAČIN MERITEV TEMPERATURE PODZEMNE VODE:","avtomatsko"]
[null,null,"ročno"]
["6.3.","POGOSTOST MERITEV HIDROGEOLOŠKIH PARAMETROV PODZEMNE VODE:","avtomatsko"]
[null,null,"ročno"]
["6.4.","GRAF: MERITVE GLADINE PODZEMNE VODE OZ. PRETOKOV NA VSEH MERILNIH MESTIH V TEKOČEM LETU\n+ KOLIČINA PADAVIN","vstavi graf"]
["6.5.","GRAF: MERITVE GLADINE PODZEMNE VODE OZ. PRETOKOV NA VSEH MERILNIH MESTIH V CELOTNEM\nOPAZOVALNEM OBDOBJU","vstavi graf"]
["6.6.","GRAF: MERITVE TEMPERATURE PODZEMNE VODE NA VSEH MERILNIH EMESTIH V TEKOČEM LETU","vstavi graf"]
["6.7.","GRAF: MERITVE TEMPERATURE PODZEMNE VODE NA VSEH MERILNIH MESTIH V CELOTNEM\nOPAZOVALNEM OBDOBJU","vstavi graf"]
["6.8.","KARTA GLADIN PODZEMNE VODE:","vstavi sliko"]
["6.9.","OSTALO","vstavi sliko oz. graf"]
[]
["6.10.",null,"GLADINA PODZEMNE VODE (m n.m.)"]
[null,null,"št. podatkov",null,"minimum",null,"maksimum",null,"povprečje",null,"razpon"]
[null,"Merilno mesto","celotno opazovalno obdobje\n(od xxxx - do xxxx)"," tekoče leto\nxxxx","celotno opazovalno obdobje\n(od xxxx - do xxxx)"," tekoče leto\nxxxx","celotno opazovalno obdobje\n(od xxxx - do xxxx)"," tekoče leto\nxxxx","celotno opazovalno obdobje\n(od xxxx - do xxxx)"," tekoče leto\nxxxx","celotno opazovalno obdobje\n(od xxxx - do xxxx)"," tekoče leto\nxxxx"]
[]
[]
[]
[]
[]
[]
[null,"pobarvaj me I"]
[null,null,"PRETOKI (l/s) OZ. VODOSTAJ (m n.m.)"]
["6.11.",null,"št. podatkov",null,"minimum",null,"maksimum",null,"povprečje",null,"razpon"]
[null,"Merilno mesto","celotno opazovalno obdobje\n(od xxxx - do xxxx)"," tekoče leto\nxxxx","celotno opazovalno obdobje\n(od xxxx - do xxxx)"," tekoče leto\nxxxx","celotno opazovalno obdobje\n(od xxxx - do xxxx)"," tekoče leto\nxxxx","celotno opazovalno obdobje\n(od xxxx - do xxxx)"," tekoče leto\nxxxx","celotno opazovalno obdobje\n(od xxxx - do xxxx)"," tekoče leto\nxxxx"]
[]
[]
[]
[]
[]
[]
[null,"pobarvaj me II"]
[]
["6.12.","INTERPRETACIJA HIDROGEOLOŠKIH PARAMETROV:"]
[]
[]
[]
[]
[]
[]
[]
[]
[]
[]
[]
[]
[]
[]
[]
[]
[]
[]
["6.13.","PREVERJANJE KVALITETE MERITEV GLADINE PODZEMNE VODE:"]

{"sheet":"7. MESTO,ČAS, NAČIN VZORČENJA","index":6,"n_rows":24,"n_cols":19,"rows_kept":24,"cut":false,"hidden":false,"merged":[[15,14,15,17],[0,1,0,13],[24,1,31,7],[23,1,23,7],[2,1,2,13],[10,1,12,9],[9,1,9,9],[15,2,15,5],[15,6,15,9],[15,10,15,13]]}
["7.","MERILNA MESTA OZ. MESTA VZORČENJA  ZA IZVAJANJE OBRATOVALNEGA MONITORINGA STANJA PODZEMNE VODE"]
[]
[null,"Merilna mesta oz. mesta vzorčenja:"]
["7.1.","Merilno mesto oz. mesto vzorčenja","X / Lon (λ)","Y / Lat (φ)","Z ","Vrsta merilnega mesta","Z ustja","globina vrtine (m)","Lokacija merilnega mesta","Meritve GPV oz. pretoka (DA/NE)","Meritve GPV oz. pretoka (avtomatsko/ročno)","Vzorčenje (DA/NE)","Filtrski odsek od-do (m)","Vodonosnik"]
[]
[]
[]
[null,"pobarvaj me"]
[]
["7.2.","Strokovne utemeljitve in obrazložitve:"]
[]
[]
[]
[]
["7.3.","Čas vzorčenja:"]
["7.4.",null,"merilno mesto #",null,null,null,"merilno mesto #",null,null,null,"merilno mesto #",null,null,null,"merilno mesto #",null,null,null,"pobarvaj me II"]
[null,"datum vzorčenja"]
["7.5.","hidrološko stanje v času vzorčenja"]
["7.6.","standard vzorčenja"]
["7.7.","način vzorčenja"]
["7.8.","videz vzorca podzemne vode "]
[null,"laboratorijska številka vzorca"]
[]
["7.9.","Dodatne opombe:"]

{"sheet":"8. VRSTA MERITEV IN OBSEG PAR.","index":7,"n_rows":32,"n_cols":4,"rows_kept":32,"cut":false,"hidden":false,"merged":[[0,1,0,4],[4,2,4,3],[5,2,5,3],[6,2,6,3],[3,2,3,3],[31,1,31,4],[32,1,38,4],[2,1,2,3],[8,1,8,4],[23,1,23,4],[27,1,27,4]]}
["8.","VRSTA MERITEV IN OBSEG PARAMETROV OBRATOVALNEGA MONITORINGA STANJA PODZEMNE VODE"]
[]
["8.1.","Nabor parametrov"]
[null,"Tip naprave","Predpis"]
[null,"IED NAPRAVA"]
[null,"NAPRAVA ZA ODSTRANJEVANJE TEKOČIH ODPADKOV\nIZ PROIZVODNJE TITANOVEGA DIOKSIDA"]
[null,"DRUGE NAPRAVE"]
[]
["8.2.","Terenske meritve na merilnem mestu:"]
[null,"ŠIFRA:","PARAMETER:","Enota "]
[null,1010,"Temperatura zraka","°C"]
[null,1020,"Temperatura vode ","°C"]
[null,1060,"pH vrednost","/"]
[null,1070,"Električna prevodnost __ (°C)","uS/cm"]
[null,1100,"Redoks potencial","mV"]
[null,1080,"Vsebnost kisika","mg/l O2"]
[null,1090,"Nasičenost s kisikom","%"]
[null,1111,"Motnost","NTU"]
[null,1040,"Videz","opisno"]
[null,null,"Globina potopljene črpalke","m"]
[null,1302,"Globina do podzemne vode ob vzorčenju","m"]
[null,1029,"Barva","m-1"]
[]
["8.3.","Parametri obratovalnega monitoringa stanja podzemne vode:"]
[null,"ŠIFRA:","PARAMETER:","Enota "]
[]
[]
["8.4.","Identifikacija organskih spojin:"]
[null,"ŠIFRA:","PARAMETER:","Enota "]
[]
[]
["8.5.","Dodatne opombe:"]

{"sheet":"9. PREDČRPANJE IN VZOREČNJE","index":8,"n_rows":58,"n_cols":20,"rows_kept":58,"cut":false,"hidden":false,"merged":[[4,8,4,11],[4,12,4,15],[4,16,4,19],[5,1,5,3],[6,2,6,3],[7,2,7,3],[8,2,8,3],[0,1,0,7],[22,1,22,7],[15,2,15,3],[16,2,16,3],[17,2,17,3],[18,2,18,3],[19,2,19,3],[4,4,4,7],[23,1,28,7],[9,2,9,3],[10,2,10,3],[11,2,11,3],[12,2,12,3],[13,2,13,3],[14,2,14,3],[45,4,45,7],[45,8,45,11],[45,12,45,15],[45,16,45,19],[30,4,30,7],[49,8,49,11],[49,12,49,15],[49,16,49,19],[30,8,30,11],[30,12,30,15],[30,16,30,19],[53,1,55,2],[57,1,57,6],[58,1,63,6],[49,1,49,2],[49,4,49,7]]}
["9.","NAČIN PREDČRPANJA IN IZMERJENE VREDNOSTI PARAMETROV PODZEMNIH VODA VKLJUČENIH V OBRATOVALNI MONITORING"]
[]
[null,"Leto zadnjega vzorčenja"]
[null,null,null,null,null,null,null,null,null,null,null,null,null,null,null,null,"pobarvaj me"]
[null,"Predčrpanje:",null,null,"Merilno mesto #",null,null,null,"Merilno mesto #",null,null,null,"Merilno mesto #",null,null,null,"Merilno mesto #"]
[null,"Ime merilnega mesta"]
[null,null,"Datum predčrpanja"]
[null,1300,"Globina do podzemne vode pred predčrpanjem (m)"]
["9.1.",1304,"Prehodnost vrtine pred predčrpanjem (m"]
["9.2.",1305,"Standard predčrpanja"]
["9.3.",1600,"Predčrpanje - tip črpalke"]
["9.4.",1603,"Pretok črpanja (l/min) v času predčrpanja"]
[null,1606,"Celotna količina predčrpane vode (l)"]
["9.5.",1303,"Prehodnost vrtine po vzorčenju"]
["9.6.",1604,"Trajanje črpanja (min)"]
[null,1301,"Globina do podzemne vode po predčrpanju (m)"]
[null,null,"Vodostaj (m) vodotoka"]
[null,null,"Pretok (l/s) vodotoka"]
[null,null,"Standard za pripravo, prevoz, shranjevanje vzorcev"]
["9.7.",1302,"Globina do podzemne vode ob vzorčenju (m)"]
[]
[]
["9.8.","Opombe:"]
[]
[]
[]
[]
[]
[]
[]
["9.9.",null,"Rezultati terenskih meritev:",null,"merilno mesto #",null,null,null,"merilno mesto #",null,null,null,"merilno mesto #",null,null,null,"merilno mesto #"]
[null,"Šifra parametra:","PARAMETER:","Enota/Izražen kot ","datum","datum","datum","datum","datum","datum","datum","datum","datum","datum","datum","datum","datum","datum","datum","datum"]
[null,1010,"Temperatura zraka","°C"]
[null,1020,"Temperatura  vode ","°C"]
[null,1060,"pH vrednost","/"]
["9.10.",1070,"Električna prevodnost (°C)","uS/cm"]
[null,1100,"Redoks potencial","mV"]
[null,1080,"Vsebnost kisika","mg/l O2"]
[null,1090,"Nasičenost s kisikom","%"]
[null,1111,"Motnost","NTU"]
[null,1040,"Videz","opisno"]
["9.11.",null,"Globina potopljene črpalke","m"]
["9.12.",1302,"Globina do podzemne vode ob vzorčenju","m"]
[null,1029,"Barva","m-1"]
[]
["9.13.","Rezultati parametrov monitoringa stanja vode:",null,null,"merilno mesto #",null,null,null,"merilno mesto #",null,null,null,"merilno mesto #",null,null,null,"merilno mesto #"]
[null,"Šifra parametra:","PARAMETER:","Enota/Izražen kot ","datum","datum","datum","datum","datum","datum","datum","datum","datum","datum","datum","datum","datum","datum","datum","datum"]
[]
[]
["9.14.","Rezultati Identifikacije organskih spojin:",null,null,"merilno mesto #",null,null,null,"merilno mesto #",null,null,null,"merilno mesto #",null,null,null,"merilno mesto #"]
[null,"Šifra parametra:","PARAMETER:","Enota/Izražen kot ","datum","datum","datum","datum","datum","datum","datum","datum","datum","datum","datum","datum","datum","datum","datum","datum"]
[]
[null,null,null,null,null,null,null,null,null,null,null,null,null,null,null,null,null,null,null,"pobarvaj me I"]
["9.15.","Vstavi sken identifikacije organskih onesnaževal (pdf)"]
[]
[]
[]
["9.16.","Opombe:"]

{"sheet":"10. METODE, OPREMA","index":9,"n_rows":22,"n_cols":9,"rows_kept":22,"cut":false,"hidden":false,"merged":[[22,1,26,3],[21,1,21,3],[0,1,0,2],[3,1,3,8],[15,1,15,8]]}
["10.","UPORABLJENE MERILNE METODE IN MERILNA OPREMA"]
[]
[null,"ŠIFRA","PARAMETER","Enota/Izražen kot","METODA","MERILNA OPREMA","Podizvajalec","Meja določljivosti (LOQ) merilne metode in meja zaznavanja (LOD) merilne metode","Merilna negotovost (%) merilne metode"]
["10.1.","Terenski parametri:"]
[null,1010,"Temperatura zraka"]
[null,1020,"Temperatura  vode "]
[null,1060,"pH vrednost"]
[null,1070,"Električna prevodnost __ (°C)"]
[null,1100,"Redoks potencial"]
[null,1080,"Vsebnost kisika"]
[null,1090,"Nasičenost s kisikom"]
[null,1111,"Motnost"]
[null,1040,"Videz"]
[null,1029,"Barva"]
[]
[null,"Parametri obratovalnega monitoringa stanja podzemne vode:"]
[null,{"$f":"IF('8. VRSTA MERITEV IN OBSEG PAR.'!B26=\"\",\"\",'8. VRSTA MERITEV IN OBSEG PAR.'!B26)","v":""},{"$f":"IF('8. VRSTA MERITEV IN OBSEG PAR.'!C26=\"\",\"\",'8. VRSTA MERITEV IN OBSEG PAR.'!C26)","v":""}]
[]
[null,"Parameter identifikacije organskih spojin"]
[null,"",""]
[]
["10.2.","Opomba:"]

{"sheet":"11.SPREMEMBE VSEB","index":10,"n_rows":15,"n_cols":7,"rows_kept":15,"cut":false,"hidden":false,"merged":[[15,1,21,4],[0,1,0,2],[5,1,6,1],[5,2,6,2],[9,1,9,2],[14,1,14,4]]}
["11.","IZRAČUN SPREMEMB VSEBNOSTI POSAZMEZNEGA PARAMETRA V PODZEMNI VODI"]
[]
[]
["11.1.","METODA ZA IZRAČUN SPREMEMB VSEBNOSTI POSAZMEZNEGA PARAMETRA","Δ = C(N1) – C(N2)"]
[null,null,null,null,"pobarvaj"]
["11.2.","Parametri","Enota","merilno mesto #","merilno mesto #","merilno mesto #","pobarvaj me I"]
[null,null,null,"povprečna vrednost\n(leto)","povprečna vrednost\n(leto)","sprememba vsebnosti\n(leto)"]
[]
[null,null,null,"pobarvaj me II"]
["11.3.","Ostali parametri"]
[]
[]
[]
[null,"pobarvaj me III"]
["11.4.","Opombe:"]

{"sheet":"12.OCENA TRENDOV","index":11,"n_rows":35,"n_cols":6,"rows_kept":35,"cut":false,"hidden":false,"merged":[[34,1,34,3],[35,1,38,3],[0,1,0,3],[3,0,9,0],[10,0,16,0],[17,0,23,0],[24,0,30,0]]}
["12.","VREDNOTENJE SPREMEMB VSEBNOSTI POSAMEZNEGA PARAMETRA V PODZEMNI VODI "]
[]
["12.1.","PARAMETER Z UGOTOVLJENO SPREMEMBO VSEBNOSTI POSAMEZNEGA PARAMETRA","dolvodno merilno mesto","ugotovljene spremembe vsebnosti posameznega parametra glede na celotno obdobje monitoringa","trend koncentracije parametra glede na celotno opazovalno obdobje (+/-)"]
["Vnesi\nobdobje",null,null,null,null,"prva"]
[]
[]
[]
[]
[]
[]
["Vnesi\nobdobje",null,null,null,null,"druga"]
[]
[]
[]
[]
[]
[]
["Vnesi\nobdobje",null,null,null,null,"tretja"]
[]
[]
[]
[]
[]
[]
["Vnesi\nobdobje",null,null,null,null,"cetrta"]
[]
[]
[]
[]
[]
[]
[]
[]
[]
["12.2.","Opombe oz. interpretacija rezultatov "]

{"sheet":"13. SKLEPNE UGOTOVITVE","index":12,"n_rows":4,"n_cols":2,"rows_kept":4,"cut":false,"hidden":false,"merged":[[3,1,3,2],[4,1,34,2],[0,1,0,11]]}
["13.","UGOTOVITVE O VPLIVU NAPRAVE"]
[]
[]
["13.1.","Sklepne ugotovitve:"]

{"sheet":"14.PREDLOGI","index":13,"n_rows":21,"n_cols":2,"rows_kept":21,"cut":false,"hidden":false,"merged":[[2,1,2,2],[4,1,19,2],[21,1,36,2],[0,1,0,2],[3,1,3,2],[20,1,20,2]]}
[14,"PREDLOGI ZA IZVEDBO OBRATOVALNEGA MONITORINGA V PRIHODNJEM LETU"]
[]
["14.1.","Priporočila oz. opombe:"]
[null,"HIDROGEOLOŠKI DEL: "]
[null,"\n"]
[]
[]
[]
[]
[]
[]
[]
[]
[]
[]
[]
[]
[]
[]
[]
[null,"KEMIJSKI DEL: "]

{"sheet":"15. POOBLASTILO","index":14,"n_rows":1,"n_cols":2,"rows_kept":1,"cut":false,"hidden":false,"merged":[[0,1,0,3]]}
[15,"POOBLASTILO"]

{"sheet":"16. PRILOGE","index":15,"n_rows":3,"n_cols":2,"rows_kept":3,"cut":false,"hidden":false,"merged":[[2,1,2,6],[3,1,8,6],[0,1,0,6]]}
[16,"PRILOGE"]
[]
[null,"Opombe:"]

{"sheet":"Parametri","index":16,"n_rows":622,"n_cols":32,"rows_kept":622,"cut":false,"hidden":true,"merged":[[13,7,13,8],[26,7,26,8],[46,7,46,10],[4,28,4,31],[30,28,30,31]]}
["SIF_PAR","OZNAKA_PARAMETRA","MERSKA_ENOTA",null,"DA/NE","MERITEV",null,"5. MERILNA MESTA VZORČENJA - 5.2.",null,null,null,null,null,null,null,null,null,null,null,null,null,"OZNAKA_PARAMETRA","SIF_PAR",null,"PARAMETER","ŠIFRA","ENOTA",null,"9. PREDČRPANJE IN VZOREČNJE - 9.13"]
[10,"Ime postaje","-",null,"DA","ROČNO",null,null,null,null,null,null,null,null,null,null,null,null,null,null,null,{"$f":"B2","v":"Ime postaje"},{"$f":"A2","v":10},null,"Temperatura zraka",1010,"°C"]
[12,"Polje","-",null,"NE","AVTOMATSKO",null,null,null,null,null,null,null,null,null,null,null,null,null,null,null,{"$f":"B3","v":"Polje"},{"$f":"A3","v":12},null,"Temperatura vode ",1020,"°C"]
[13,"Izvir","-",null,null,null,null,"6. VZDRŽ. OBJEKTOV - 6.1.",null,null,null,null,null,null,null,null,null,null,null,null,null,"Izvir",13,null,"pH vrednost",1060,"/",null,"9. PREDČRPANJE IN VZOREČNJE"]
[20,"Šifra postaje","-",null,null,null,null,{"$f":"IF('7. MESTO,ČAS, NAČIN VZORČENJA'!H6=\"\",\"\",'7. MESTO,ČAS, NAČIN VZORČENJA'!H6)","v":""},null,null,null,null,null,null,null,null,null,null,null,null,null,"Šifra postaje",20,null,"Električna prevodnost (°C)",1070,"uS/cm",null,"Merilno mesto #"]
[35,"Laboratorijska številka","-",null,null,null,null,null,null,null,null,null,null,null,null,null,null,null,null,null,null,"Laboratorijska številka",35,null,"Redoks potencial",1100,"mV",null,"datum","datum","datum","datum"]
[40,"Geod. koordinate x ","-",null,null,null,null,"7. MERITVE, INTERPRETACIJA HG. - 7.10.",null,null,null,null,null,null,null,null,null,null,null,null,null,"Geod. koordinate x ",40,null,"Vsebnost kisika",1080,"mg/l O2"]
[50,"Geod. koordinate y ","-",null,null,null,null,null,null,null,null,null,null,null,null,null,null,null,null,null,null,"Geod. koordinate y ",50,null,"Nasičenost s kisikom",1090,"%"]
[60,"Leto","-",null,null,null,null,null,null,null,null,null,null,null,null,null,null,null,null,null,null,"Leto",60,null,"Motnost",1111,"NTU"]
[70,"Mesec","-",null,null,null,null,"7. MERITVE, INTERPRETACIJA HG. - 7.11.",null,null,null,null,null,null,null,null,null,null,null,null,null,"Mesec",70,null,"Prehodnost vrtine ob vzorčenju",1303,"m"]
[80,"Dan","-",null,null,null,null,null,null,null,null,null,null,null,null,null,null,null,null,null,null,"Dan",80,null,"Globina do podzemne vode ob vzorčenju",1302,"m"]
[90,"Ura","-",null,null,null,null,null,null,null,null,null,null,null,null,null,null,null,null,null,null,"Ura",90]
[100,"Minuta","-",null,null,null,null,"9. PREDČRPANJE IN VZOREČNJE - 9.1. & 9.2.",null,null,null,null,null,null,null,null,null,null,null,null,null,"Minuta",100]
[165,"Propifenazon","µg/l",null,null,null,null,"Merilno mesto #",null,null,null,null,null,null,null,null,null,null,null,null,null,"Propifenazon",165]
[200,"Vzorec odvzel","-",null,null,null,null,null,null,null,null,null,null,null,null,null,null,null,null,null,null,"Vzorec odvzel",200]
[202,"dimetilftalat","µg/l",null,null,null,null,null,null,null,null,null,null,null,null,null,null,null,null,null,null,"dimetilftalat",202]
[210,"Matriks","-",null,null,null,null,null,null,null,null,null,null,null,null,null,null,null,null,null,null,"Matriks",210]
[215,"metolaklor-deskloro","µg/l",null,null,null,null,null,null,null,null,null,null,null,null,null,null,null,null,null,null,"metolaklor-deskloro",215]
[220,"Metoda vzorčenja","-",null,null,null,null,null,null,null,null,null,null,null,null,null,null,null,null,null,null,"Metoda vzorčenja",220]
[235,"cirkonij","µg/l",null,null,null,null,null,null,null,null,null,null,null,null,null,null,null,null,null,null,"cirkonij",235]
[279,"silicij","µg/l",null,null,null,null,null,null,null,null,null,null,null,null,null,null,null,null,null,null,"silicij",279]
[319,"aceton","mg/l",null,null,null,null,null,null,null,null,null,null,null,null,null,null,null,null,null,null,"aceton",319]
[349,"1,2-diklorobenzen","µg/l",null,null,null,null,null,null,null,null,null,null,null,null,null,null,null,null,null,null,"1,2-diklorobenzen",349]
[353,"1,3-diklorobenzen","µg/l",null,null,null,null,null,null,null,null,null,null,null,null,null,null,null,null,null,null,"1,3-diklorobenzen",353]
[355,"1,4-diklorobenzen","µg/l",null,null,null,null,null,null,null,null,null,null,null,null,null,null,null,null,null,null,"1,4-diklorobenzen",355]
[370,"Klorobenzen","µg/l",null,null,null,null,null,null,null,null,null,null,null,null,null,null,null,null,null,null,"Klorobenzen",370]
[510,"klordan","µg/l",null,null,null,null,{"$f":"H14","v":"Merilno mesto #"},null,null,null,null,null,null,null,null,null,null,null,null,null,"klordan",510]
[515,"kvintezon (vsota)","µg/l",null,null,null,null,null,null,null,null,null,null,null,null,null,null,null,null,null,null,"kvintezon (vsota)",515]
[517,"mireks","µg/l",null,null,null,null,null,null,null,null,null,null,null,null,null,null,null,null,null,null,"mireks",517]
[594,"dioktil ftalat","µg/l",null,null,null,null,null,null,null,null,null,null,null,null,null,null,null,null,null,null,"dioktil ftalat",594]
[631,"Polarna organska topila","mg/l",null,null,null,null,null,null,null,null,null,null,null,null,null,null,null,null,null,null,"Polarna organska topila",631,null,null,null,null,null,"merilno mesto #"]
[666,"etanol","mg/l",null,null,null,null,null,null,null,null,null,null,null,null,null,null,null,null,null,null,"etanol",666,null,null,null,null,null,"datum","datum","datum","datum"]
[751,"usedljive snovi","mg/l",null,null,null,null,null,null,null,null,null,null,null,null,null,null,null,null,null,null,"usedljive snovi",751]
[781,"sulfit","mg/l",null,null,null,null,null,null,null,null,null,null,null,null,null,null,null,null,null,null,"sulfit",781]
[807,"azinfos-etil","µg/l",null,null,null,null,null,null,null,null,null,null,null,null,null,null,null,null,null,null,"azinfos-etil",807]
[808,"azinfos-metil","µg/l",null,null,null,null,null,null,null,null,null,null,null,null,null,null,null,null,null,null,"azinfos-metil",808]
[835,"ciprodinil","µg/l",null,null,null,null,"10. METODE, OPREMA - 10.2.",null,null,null,null,null,null,null,null,null,null,null,null,null,"ciprodinil",835]
[839,"deltametrin","µg/l",null,null,null,null,null,null,null,null,null,null,null,null,null,null,null,null,null,null,"deltametrin",839]
[840,"demeton-S-metil","µg/l",null,null,null,null,null,null,null,null,null,null,null,null,null,null,null,null,null,null,"demeton-S-metil",840]
[864,"disulfoton","µg/l",null,null,null,null,"11. REZULTATI MERITEV - 11.2.",null,null,null,null,null,null,null,null,null,null,null,null,null,"disulfoton",864]
[880,"etion","µg/l",null,null,null,null,null,{"$f":"IF('8. VRSTA MERITEV IN OBSEG PAR.'!I45=\"\",\"\",'8. VRSTA MERITEV IN OBSEG PAR.'!I45)","v":""},null,null,null,null,null,null,null,null,null,null,null,null,"etion",880]
[899,"fenheksamid","µg/l",null,null,null,null,null,null,null,null,null,null,null,null,null,null,null,null,null,null,"fenheksamid",899]
[947,"forat","µg/l",null,null,null,null,"13.OCENA TRENDOV - 13.1.",null,null,null,null,null,null,null,null,null,null,null,null,null,"forat",947]
[954,"fosalon","µg/l",null,null,null,null,null,null,null,null,null,null,null,null,null,null,null,null,null,null,"fosalon",954]
[955,"fosfamidon","µg/l",null,null,null,null,null,null,null,null,null,null,null,null,null,null,null,null,null,null,"fosfamidon",955]
[956,"fosmet","µg/l",null,null,null,null,"7. MESTO,ČAS, NAČIN VZORČENJA - 7.3",null,null,null,null,null,null,null,null,null,null,null,null,null,"fosmet",956]
[1009,"krezoksim-metil","µg/l",null,null,null,null,"merilno mesto #",null,null,null,null,null,null,null,null,null,null,null,null,null,"krezoksim-metil",1009]
[1011,"kumafos","µg/l",null,null,null,null,null,null,null,null,null,null,null,null,null,null,null,null,null,null,"kumafos",1011]
[1015,"lambda-Cihalotrin","µg/l",null,null,null,null,null,null,null,null,null,null,null,null,null,null,null,null,null,null,"lambda-Cihalotrin",1015]
[1029,"Barva","m-1",null,null,null,null,null,null,null,null,null,null,null,null,null,null,null,null,null,null,"Barva",1029]
[1050,"Vonj","-",null,null,null,null,null,null,null,null,null,null,null,null,null,null,null,null,null,null,"Vonj",1050]
[1051,"monoktotofos","µg/l",null,null,null,null,null,null,null,null,null,null,null,null,null,null,null,null,null,null,"monoktotofos",1051]
[1071,"Električna prevodnost (25 0C)","µS/cm",null,null,null,null,null,null,null,null,null,null,null,null,null,null,null,null,null,null,"Električna prevodnost (25 0C)",1071]
[1081,"Kisik sonda","mg O2/l",null,null,null,null,null,null,null,null,null,null,null,null,null,null,null,null,null,null,"Kisik sonda",1081]
[1087,"piridafention","µg/l",null,null,null,null,"10. METODE, OPREMA",null,null,null,null,null,null,null,null,null,null,null,null,null,"piridafention",1087]
[1091,"Nasičenost s kisikom - sonda","%",null,null,null,null,"","",null,null,null,null,null,null,null,null,null,null,null,null,"Nasičenost s kisikom - sonda",1091]
[1110,"Motnost","mg SiO2/l",null,null,null,null,null,null,null,null,null,null,null,null,null,null,null,null,null,null,"Motnost",1110]
[1114,"Motnost - ocena","-",null,null,null,null,"11.3. IZRAČUN OPOZORILNIH SPREMEMB V PODZEMNI VODI",null,null,null,null,null,null,null,null,null,null,null,null,null,"Motnost - ocena",1114]
[1120,"Vodostaj","cm",null,null,null,null,null,null,null,null,null,null,null,null,null,null,null,null,null,null,"Vodostaj",1120]
[1121,"Vodostaj - ocena","-",null,null,null,null,null,null,null,null,null,null,null,null,null,null,null,null,null,null,"Vodostaj - ocena",1121]
[1130,"Dno ","cm",null,null,null,null,"11.2. IZRAČUN OPOZORILNIH SPREMEMB V PODZEMNI VODI",null,null,null,null,null,null,null,null,null,null,null,null,null,"Dno ",1130]
[1132,"Premer objekta","m",null,null,null,null,null,null,null,null,null,null,null,null,null,null,null,null,null,null,"Premer objekta",1132]
[1134,"Funkcija objekta","-",null,null,null,null,null,null,null,null,null,null,null,null,null,null,null,null,null,null,"Funkcija objekta",1134]
[1135,"Vgrajen črpalni sistem","-",null,null,null,null,"2. PODATKI O IZVAJALCU OBRATOVALNEGA MONITORINGA",null,null,null,null,null,null,null,null,null,null,null,null,null,"Vgrajen črpalni sistem",1135]
[1140,"Globina vrtine","m",null,null,null,null,"Naziv podizvajalca:",null,null,null,null,null,null,null,null,null,null,null,null,null,"Globina vrtine",1140]
[1150,"Nivo vode","m",null,null,null,null,"Odgovorna oseba:",null,null,null,null,null,null,null,null,null,null,null,null,null,"Nivo vode",1150]
[1151,"triazofos","µg/l",null,null,null,null,"Kontaktna oseba:",null,null,null,null,null,null,null,null,null,null,null,null,null,{"$f":"B67","v":"triazofos"},{"$f":"A67","v":1151}]
[1153,"Višina vodnega stolpca","m",null,null,null,null,null,null,null,null,null,null,null,null,null,null,null,null,null,null,"Višina vodnega stolpca",1153]
[1155,"Ocenjeni volumen v objektu","m3",null,null,null,null,"5.1 VZDRŽEVANJE OBJEKTOV ZA IZVAJANJE OBRATOVALNEGA MONITORINGA",null,null,null,null,null,null,null,null,null,null,null,null,null,"Ocenjeni volumen v objektu",1155]
[1159,"triklorfon","µg/l",null,null,null,null,null,null,null,null,null,null,null,null,null,null,null,null,null,null,"triklorfon",1159]
[1160,"Način odvzema","-",null,null,null,null,null,null,null,null,null,null,null,null,null,null,null,null,null,null,"Način odvzema",1160]
[1163,"vamidotion","µg/l",null,null,null,null,null,null,null,null,null,null,null,null,null,null,null,null,null,null,"vamidotion",1163]
[1170,"Globina zajema vzorca","m ",null,null,null,null,null,null,null,null,null,null,null,null,null,null,null,null,null,null,"Globina zajema vzorca",1170]
[1180,"Pretok","m3/s",null,null,null,null,null,null,null,null,null,null,null,null,null,null,null,null,null,null,"Pretok",1180]
[1182,"Pretok - ocena","m3/s",null,null,null,null,null,null,null,null,null,null,null,null,null,null,null,null,null,null,"Pretok - ocena",1182]
[1183,"fenuron","µg/l",null,null,null,null,null,null,null,null,null,null,null,null,null,null,null,null,null,null,"fenuron",1183]
[1184,"fluometron","µg/l",null,null,null,null,null,null,null,null,null,null,null,null,null,null,null,null,null,null,"fluometron",1184]
[1185,"Metoda meritva pretoka","-",null,null,null,null,null,null,null,null,null,null,null,null,null,null,null,null,null,null,"Metoda meritva pretoka",1185]
[1216,"2-butanol","mg/l",null,null,null,null,null,null,null,null,null,null,null,null,null,null,null,null,null,null,"2-butanol",1216]
[1217,"etilacetat","mg/l",null,null,null,null,null,null,null,null,null,null,null,null,null,null,null,null,null,null,"etilacetat",1217]
[1248,"Vsota PBDE (bromirani difeniletri)","µg/l",null,null,null,null,null,null,null,null,null,null,null,null,null,null,null,null,null,null,"Vsota PBDE (bromirani difeniletri)",1248]
[1275,"PCB (vsota-6Ballscm.)","µg/l",null,null,null,null,null,null,null,null,null,null,null,null,null,null,null,null,null,null,"PCB (vsota-6Ballscm.)",1275]
[1300,"Globina do podzemne vode pred predčrpanjem ","m",null,null,null,null,null,null,null,null,null,null,null,null,null,null,null,null,null,null,"Globina do podzemne vode pred predčrpanjem ",1300]
[1301,"Globina do podzemne vode po predčrpanju ","m",null,null,null,null,null,null,null,null,null,null,null,null,null,null,null,null,null,null,"Globina do podzemne vode po predčrpanju ",1301]
[1304,"Prehodnost vrtine pred predčrpanjem",null,null,null,null,null,null,null,null,null,null,null,null,null,null,null,null,null,null,null,"Prehodnost vrtine pred predčrpanjem",1304]
[1305,"Standard predčrpanja",null,null,null,null,null,null,null,null,null,null,null,null,null,null,null,null,null,null,null,"Standard predčrpanja",1305]
[1372,"celotna alkaliteta","mmol/l",null,null,null,null,null,null,null,null,null,null,null,null,null,null,null,null,null,null,"celotna alkaliteta",1372]
[1390,"m-alkaliteta","mmol/l",null,null,null,null,null,null,null,null,null,null,null,null,null,null,null,null,null,null,"m-alkaliteta",1390]
[1404,"raztopljene snovi (105oC)","mg/l",null,null,null,null,null,null,null,null,null,null,null,null,null,null,null,null,null,null,"raztopljene snovi (105oC)",1404]
[1439,"1-Acetoksi-2-metoksietan","mg/l",null,null,null,null,null,null,null,null,null,null,null,null,null,null,null,null,null,null,"1-Acetoksi-2-metoksietan",1439]
[1440,"2-(2-Butoksietoksi)etanol","mg/l",null,null,null,null,null,null,null,null,null,null,null,null,null,null,null,null,null,null,"2-(2-Butoksietoksi)etanol",1440]
[1441,"2-butoksi etilacetat","mg/l",null,null,null,null,null,null,null,null,null,null,null,null,null,null,null,null,null,null,"2-butoksi etilacetat",1441]
[1442,"2-Etoksietilacetat","mg/l",null,null,null,null,null,null,null,null,null,null,null,null,null,null,null,null,null,null,"2-Etoksietilacetat",1442]
[1460,"N,N-dietil-m-toluamid","µg/l",null,null,null,null,null,null,null,null,null,null,null,null,null,null,null,null,null,null,"N,N-dietil-m-toluamid",1460]
[1462,"prometron","µg/l",null,null,null,null,null,null,null,null,null,null,null,null,null,null,null,null,null,null,"prometron",1462]
[1464,"simetrin","µg/l",null,null,null,null,null,null,null,null,null,null,null,null,null,null,null,null,null,null,"simetrin",1464]
[1520,"Vreme pred vzorčenjem","-",null,null,null,null,null,null,null,null,null,null,null,null,null,null,null,null,null,null,"Vreme pred vzorčenjem",1520]
[1530,"Vreme med vzorčenjem","-",null,null,null,null,null,null,null,null,null,null,null,null,null,null,null,null,null,null,"Vreme med vzorčenjem",1530]
[1570,"1,2-Dietoksietan","mg/l",null,null,null,null,null,null,null,null,null,null,null,null,null,null,null,null,null,null,"1,2-Dietoksietan",1570]
[1572,"1,2-Propandiol","mg/l",null,null,null,null,null,null,null,null,null,null,null,null,null,null,null,null,null,null,"1,2-Propandiol",1572]
[1575,"1,4-dioksan","mg/l",null,null,null,null,null,null,null,null,null,null,null,null,null,null,null,null,null,null,"1,4-dioksan",1575]
[1579,"1-butanol","mg/l",null,null,null,null,null,null,null,null,null,null,null,null,null,null,null,null,null,null,"1-butanol",1579]
[1588,"1-propanol","mg/l",null,null,null,null,null,null,null,null,null,null,null,null,null,null,null,null,null,null,"1-propanol",1588]
[1600,"2-Etoksietanol","mg/l",null,null,null,null,null,null,null,null,null,null,null,null,null,null,null,null,null,null,"2-Etoksietanol",1600]
[1600,"Predčrpanje - tip črpalke","-",null,null,null,null,null,null,null,null,null,null,null,null,null,null,null,null,null,null,"Predčrpanje - tip črpalke",1600]
[1602,"Predčrpanje - pretok črpalke","l/s",null,null,null,null,null,null,null,null,null,null,null,null,null,null,null,null,null,null,"Predčrpanje - pretok črpalke",1602]
[1603,"HITROST ČRPANJA","l/min",null,null,null,null,null,null,null,null,null,null,null,null,null,null,null,null,null,null,"HITROST ČRPANJA",1603]
[1604,"Predčrpanje - čas črpanja","min",null,null,null,null,null,null,null,null,null,null,null,null,null,null,null,null,null,null,"Predčrpanje - čas črpanja",1604]
[1606,"Predčrpanje - prečrpan volumen","m3",null,null,null,null,null,null,null,null,null,null,null,null,null,null,null,null,null,null,"Predčrpanje - prečrpan volumen",1606]
[1610,"Električna prev. - začetna","µS/cm",null,null,null,null,null,null,null,null,null,null,null,null,null,null,null,null,null,null,"Električna prev. - začetna",1610]
[1612,"Električna prev. - končna","µS/cm",null,null,null,null,null,null,null,null,null,null,null,null,null,null,null,null,null,null,"Električna prev. - končna",1612]
[1614,"Temperatura vode na začetku","oC",null,null,null,null,null,null,null,null,null,null,null,null,null,null,null,null,null,null,"Temperatura vode na začetku",1614]
[1616,"Temperatura vode na koncu","oC",null,null,null,null,null,null,null,null,null,null,null,null,null,null,null,null,null,null,"Temperatura vode na koncu",1616]
[1618,"2-propanol","mg/l",null,null,null,null,null,null,null,null,null,null,null,null,null,null,null,null,null,null,"2-propanol",1618]
[1687,"bromofos-etil","µg/l",null,null,null,null,null,null,null,null,null,null,null,null,null,null,null,null,null,null,"bromofos-etil",1687]
[1839,"metanol","mg/l",null,null,null,null,null,null,null,null,null,null,null,null,null,null,null,null,null,null,"metanol",1839]
[1900,"Opombe - stanje okolice","-",null,null,null,null,null,null,null,null,null,null,null,null,null,null,null,null,null,null,"Opombe - stanje okolice",1900]
[1902,"Opombe - opažanja ob vzorčenju","-",null,null,null,null,null,null,null,null,null,null,null,null,null,null,null,null,null,null,"Opombe - opažanja ob vzorčenju",1902]
[1904,"Opombe - opažanja stanja vode","-",null,null,null,null,null,null,null,null,null,null,null,null,null,null,null,null,null,null,"Opombe - opažanja stanja vode",1904]
[1914,"paration","µg/l",null,null,null,null,null,null,null,null,null,null,null,null,null,null,null,null,null,null,"paration",1914]
[1970,"tetrabutil kositer","µg/l",null,null,null,null,null,null,null,null,null,null,null,null,null,null,null,null,null,null,"tetrabutil kositer",1970]
[2010,"Izparilni ostanek (105 0C)","mg/l",null,null,null,null,null,null,null,null,null,null,null,null,null,null,null,null,null,null,"Izparilni ostanek (105 0C)",2010]
[2020,"Suspendirane snovi po sušenju","mg/l",null,null,null,null,null,null,null,null,null,null,null,null,null,null,null,null,null,null,"Suspendirane snovi po sušenju",2020]
[2040,"Filtrirane izparine po sušenju","mg/l",null,null,null,null,null,null,null,null,null,null,null,null,null,null,null,null,null,null,"Filtrirane izparine po sušenju",2040]
[2070,"KPK s KMnO4","mg O2/l",null,null,null,null,null,null,null,null,null,null,null,null,null,null,null,null,null,null,"KPK s KMnO4",2070]
[2080,"KPK s K2Cr2O7","mg O2/l",null,null,null,null,null,null,null,null,null,null,null,null,null,null,null,null,null,null,"KPK s K2Cr2O7",2080]
[2100,"TOC","mg/l C",null,null,null,null,null,null,null,null,null,null,null,null,null,null,null,null,null,null,"TOC",2100]
[2101,"TOC sed.","%",null,null,null,null,null,null,null,null,null,null,null,null,null,null,null,null,null,null,"TOC sed.",2101]
[2102,"DOC","mg/l",null,null,null,null,null,null,null,null,null,null,null,null,null,null,null,null,null,null,"DOC",2102]
[2110,"Organski dušik","mg N/l",null,null,null,null,null,null,null,null,null,null,null,null,null,null,null,null,null,null,"Organski dušik",2110]
[2130,"Amoniak (prosti)","mg NH3/l ",null,null,null,null,null,null,null,null,null,null,null,null,null,null,null,null,null,null,{"$f":"B131","v":"Amoniak (prosti)"},{"$f":"A131","v":2130}]
[2140,"Amonij","mg/l NH4",null,null,null,null,null,null,null,null,null,null,null,null,null,null,null,null,null,null,"Amonij",2140]
[2150,"Nitriti","mg/l NO2",null,null,null,null,null,null,null,null,null,null,null,null,null,null,null,null,null,null,"Nitriti",2150]
[2160,"Nitrati","mg/l NO3",null,null,null,null,null,null,null,null,null,null,null,null,null,null,null,null,null,null,"Nitrati",2160]
[2170,"Sulfati","mg/l SO4",null,null,null,null,null,null,null,null,null,null,null,null,null,null,null,null,null,null,"Sulfati",2170]
[2180,"Kloridi","mg/l Cl",null,null,null,null,null,null,null,null,null,null,null,null,null,null,null,null,null,null,"Kloridi",2180]
[2190,"Bromidi","mg/l",null,null,null,null,null,null,null,null,null,null,null,null,null,null,null,null,null,null,"Bromidi",2190]
[2200,"Jodidi","mg/l",null,null,null,null,null,null,null,null,null,null,null,null,null,null,null,null,null,null,"Jodidi",2200]
[2210,"Fluoridi","mg/l F",null,null,null,null,null,null,null,null,null,null,null,null,null,null,null,null,null,null,"Fluoridi",2210]
[2220,"Fosfor (skupno)","mg PO4/l",null,null,null,null,null,null,null,null,null,null,null,null,null,null,null,null,null,null,"Fosfor (skupno)",2220]
[2226,"izmerjeni potencial (Ag/AgCl 3 mol/l KCl)","mV",null,null,null,null,null,null,null,null,null,null,null,null,null,null,null,null,null,null,"izmerjeni potencial (Ag/AgCl 3 mol/l KCl)",2226]
[2230,"Ortofosfati","mg/l PO4",null,null,null,null,null,null,null,null,null,null,null,null,null,null,null,null,null,null,"Ortofosfati",2230]
[2240,"SiO2","mg SiO2/l",null,null,null,null,null,null,null,null,null,null,null,null,null,null,null,null,null,null,"SiO2",2240]
[2250,"Kalcij","mg/l Ca",null,null,null,null,null,null,null,null,null,null,null,null,null,null,null,null,null,null,"Kalcij",2250]
[2260,"Magnezij","mg/l Mg",null,null,null,null,null,null,null,null,null,null,null,null,null,null,null,null,null,null,"Magnezij",2260]
[2270,"Natrij","mg/l Na",null,null,null,null,null,null,null,null,null,null,null,null,null,null,null,null,null,null,"Natrij",2270]
[2280,"Kalij","mg/l K",null,null,null,null,null,null,null,null,null,null,null,null,null,null,null,null,null,null,"Kalij",2280]
[2290,"Mangan","ug/l Mn",null,null,null,null,null,null,null,null,null,null,null,null,null,null,null,null,null,null,"Mangan",2290]
[2300,"Železo","mg/l Fe",null,null,null,null,null,null,null,null,null,null,null,null,null,null,null,null,null,null,"Železo",2300]
[2303,"železo-nefilt.","mg/l",null,null,null,null,null,null,null,null,null,null,null,null,null,null,null,null,null,null,"železo-nefilt.",2303]
[2310,"Hidrogenkarbonati","mg/l HCO3",null,null,null,null,null,null,null,null,null,null,null,null,null,null,null,null,null,null,"Hidrogenkarbonati",2310]
[2320,"Karbonati","mg CO3/l",null,null,null,null,null,null,null,null,null,null,null,null,null,null,null,null,null,null,"Karbonati",2320]
[2330,"Sulfidi","mg/l S",null,null,null,null,null,null,null,null,null,null,null,null,null,null,null,null,null,null,"Sulfidi",2330]
[2370,"Oglj. ksl. prosta","mg CO2/l",null,null,null,null,null,null,null,null,null,null,null,null,null,null,null,null,null,null,"Oglj. ksl. prosta",2370]
[2390,"Vezana ogljikova kislina ","mg CO2/l",null,null,null,null,null,null,null,null,null,null,null,null,null,null,null,null,null,null,"Vezana ogljikova kislina ",2390]
[2405,"celotni dušik","mg/l",null,null,null,null,null,null,null,null,null,null,null,null,null,null,null,null,null,null,"celotni dušik",2405]
[2425,"1,1,1,2-tetrakloroetan","µg/l",null,null,null,null,null,null,null,null,null,null,null,null,null,null,null,null,null,null,"1,1,1,2-tetrakloroetan",2425]
[2700,"Vsota kationov","meqv/l ",null,null,null,null,null,null,null,null,null,null,null,null,null,null,null,null,null,null,"Vsota kationov",2700]
[2710,"Vsota anionov","meqv/l ",null,null,null,null,null,null,null,null,null,null,null,null,null,null,null,null,null,null,"Vsota anionov",2710]
[2750,"Dušik-Kjeldahl","mg/l",null,null,null,null,null,null,null,null,null,null,null,null,null,null,null,null,null,null,"Dušik-Kjeldahl",2750]
[2800,"Skupna trdota","0NT",null,null,null,null,null,null,null,null,null,null,null,null,null,null,null,null,null,null,"Skupna trdota",2800]
[2810,"Karbonatna trdota","0NT",null,null,null,null,null,null,null,null,null,null,null,null,null,null,null,null,null,null,"Karbonatna trdota",2810]
[2820,"Nekarbonatna trdota","0NT",null,null,null,null,null,null,null,null,null,null,null,null,null,null,null,null,null,null,"Nekarbonatna trdota",2820]
[2875,"2-Butoksi etanol","mg/l",null,null,null,null,null,null,null,null,null,null,null,null,null,null,null,null,null,null,"2-Butoksi etanol",2875]
[3000,"heksaklorocikloheksan","µg/l",null,null,null,null,null,null,null,null,null,null,null,null,null,null,null,null,null,null,"heksaklorocikloheksan",3000]
[3010,"Bor","mg/l B",null,null,null,null,null,null,null,null,null,null,null,null,null,null,null,null,null,null,"Bor",3010]
[3020,"Anionaktivni detergenti","mg TBS/l",null,null,null,null,null,null,null,null,null,null,null,null,null,null,null,null,null,null,"Anionaktivni detergenti",3020]
[3021,"Anionaktivni detergenti","mg MBAS/l",null,null,null,null,null,null,null,null,null,null,null,null,null,null,null,null,null,null,"Anionaktivni detergenti",3021]
[3030,"Kationski detergenti","mg CTBS/l",null,null,null,null,null,null,null,null,null,null,null,null,null,null,null,null,null,null,"Kationski detergenti",3030]
[3040,"Neionski detergenti","mg Triton ",null,null,null,null,null,null,null,null,null,null,null,null,null,null,null,null,null,null,"Neionski detergenti",3040]
[3050,"Cianidi (lahko razgr.)","mg CN/l",null,null,null,null,null,null,null,null,null,null,null,null,null,null,null,null,null,null,"Cianidi (lahko razgr.)",3050]
[3060,"Cianidi","ug/l CN",null,null,null,null,null,null,null,null,null,null,null,null,null,null,null,null,null,null,"Cianidi",3060]
[3070,"Mineralna olja","ug/l",null,null,null,null,null,null,null,null,null,null,null,null,null,null,null,null,null,null,"Mineralna olja",3070]
[3072,"Mineralna olja - sed.","mg/kg",null,null,null,null,null,null,null,null,null,null,null,null,null,null,null,null,null,null,"Mineralna olja - sed.",3072]
[3079,"PCB-194","ug/l",null,null,null,null,null,null,null,null,null,null,null,null,null,null,null,null,null,null,"PCB-194",3079]
[3080,"Poliklorirani bifenili - PCB - vsota","ug/l",null,null,null,null,null,null,null,null,null,null,null,null,null,null,null,null,null,null,"Poliklorirani bifenili - PCB - vsota",3080]
[3081,"PCB-28","ug/l",null,null,null,null,null,null,null,null,null,null,null,null,null,null,null,null,null,null,"PCB-28",3081]
[3082,"PCB-52","ug/l",null,null,null,null,null,null,null,null,null,null,null,null,null,null,null,null,null,null,"PCB-52",3082]
[3083,"PCB-101","ug/l",null,null,null,null,null,null,null,null,null,null,null,null,null,null,null,null,null,null,"PCB-101",3083]
[3084,"PCB-118","µg/l",null,null,null,null,null,null,null,null,null,null,null,null,null,null,null,null,null,null,"PCB-118",3084]
[3085,"PCB-138","ug/l",null,null,null,null,null,null,null,null,null,null,null,null,null,null,null,null,null,null,"PCB-138",3085]
[3086,"PCB-153","ug/l",null,null,null,null,null,null,null,null,null,null,null,null,null,null,null,null,null,null,"PCB-153",3086]
[3087,"PCB-180","ug/l",null,null,null,null,null,null,null,null,null,null,null,null,null,null,null,null,null,null,"PCB-180",3087]
[3090,"Poliklorirani bifenili-sed.","µg/kg",null,null,null,null,null,null,null,null,null,null,null,null,null,null,null,null,null,null,"Poliklorirani bifenili-sed.",3090]
[3100,"Tris(kloroetil)fosfat","µg/l",null,null,null,null,null,null,null,null,null,null,null,null,null,null,null,null,null,null,"Tris(kloroetil)fosfat",3100]
[3110,"Tris(kloropropil)fosfat","µg/l",null,null,null,null,null,null,null,null,null,null,null,null,null,null,null,null,null,null,"Tris(kloropropil)fosfat",3110]
[3120,"Tributilfosfat","µg/l",null,null,null,null,null,null,null,null,null,null,null,null,null,null,null,null,null,null,"Tributilfosfat",3120]
[3130,"Dietilftalat","µg/l",null,null,null,null,null,null,null,null,null,null,null,null,null,null,null,null,null,null,"Dietilftalat",3130]
[3140,"Dibutilftalat","µg/l",null,null,null,null,null,null,null,null,null,null,null,null,null,null,null,null,null,null,"Dibutilftalat",3140]
[3150,"Dietilheksilftalat","µg/l",null,null,null,null,null,null,null,null,null,null,null,null,null,null,null,null,null,null,"Dietilheksilftalat",3150]
[3160,"Benzilbutilftalat","µg/l",null,null,null,null,null,null,null,null,null,null,null,null,null,null,null,null,null,null,"Benzilbutilftalat",3160]
[3200,"Metil-terc-butil-eter (MTBE)","µg/l",null,null,null,null,null,null,null,null,null,null,null,null,null,null,null,null,null,null,"Metil-terc-butil-eter (MTBE)",3200]
[3260,"Nonilfenoli","µg/l",null,null,null,null,null,null,null,null,null,null,null,null,null,null,null,null,null,null,"Nonilfenoli",3260]
[3270,"Oktilfenoli","µg/l",null,null,null,null,null,null,null,null,null,null,null,null,null,null,null,null,null,null,"Oktilfenoli",3270]
[3300,"C10-13 kloroalkani","µg/l",null,null,null,null,null,null,null,null,null,null,null,null,null,null,null,null,null,null,{"$f":"B195","v":"C10-13 kloroalkani"},{"$f":"A195","v":3300}]
[3307,"Trifenil kositrove spojine ","µg/l",null,null,null,null,null,null,null,null,null,null,null,null,null,null,null,null,null,null,"Trifenil kositrove spojine ",3307]
[3310,"Tributilkositrove spojine ","µg TBT/l",null,null,null,null,null,null,null,null,null,null,null,null,null,null,null,null,null,null,"Tributilkositrove spojine ",3310]
[3317,"Difenil kositrove spojine ","µg/l",null,null,null,null,null,null,null,null,null,null,null,null,null,null,null,null,null,null,"Difenil kositrove spojine ",3317]
[3320,"Dibutilkositrove spojine  ","µg DBT/l",null,null,null,null,null,null,null,null,null,null,null,null,null,null,null,null,null,null,"Dibutilkositrove spojine  ",3320]
[3325,"Monofenilkositer ","µg/l",null,null,null,null,null,null,null,null,null,null,null,null,null,null,null,null,null,null,"Monofenilkositer ",3325]
[3328,"Monobutil kositrove spojine  ","µg/l",null,null,null,null,null,null,null,null,null,null,null,null,null,null,null,null,null,null,"Monobutil kositrove spojine  ",3328]
[3330,"Dibutilftalat","µg/l",null,null,null,null,null,null,null,null,null,null,null,null,null,null,null,null,null,null,"Dibutilftalat",3330]
[3340,"Bisfenol a","µg/l",null,null,null,null,null,null,null,null,null,null,null,null,null,null,null,null,null,null,"Bisfenol a",3340]
[3355,"2,4,4'-TriBDE","µg/l",null,null,null,null,null,null,null,null,null,null,null,null,null,null,null,null,null,null,"2,4,4'-TriBDE",3355]
[3363,"2,2',4,4'-TetraBDE","µg/l",null,null,null,null,null,null,null,null,null,null,null,null,null,null,null,null,null,null,"2,2',4,4'-TetraBDE",3363]
[3370,"2,2',4,4',6-PentaBDE","µg/l",null,null,null,null,null,null,null,null,null,null,null,null,null,null,null,null,null,null,"2,2',4,4',6-PentaBDE",3370]
[3372,"2,2',4,4',5-PentaBDE","µg/l",null,null,null,null,null,null,null,null,null,null,null,null,null,null,null,null,null,null,"2,2',4,4',5-PentaBDE",3372]
[3381,"2,2',4,4',5,6'-HexaBDE","µg/l",null,null,null,null,null,null,null,null,null,null,null,null,null,null,null,null,null,null,"2,2',4,4',5,6'-HexaBDE",3381]
[3382,"2,2',4,4',5,5'-HexaBDE","µg/l",null,null,null,null,null,null,null,null,null,null,null,null,null,null,null,null,null,null,"2,2',4,4',5,5'-HexaBDE",3382]
[3873,"2-Metil-1-butanol","mg/l",null,null,null,null,null,null,null,null,null,null,null,null,null,null,null,null,null,null,"2-Metil-1-butanol",3873]
[4010,"Aluminij","ug/l Al",null,null,null,null,null,null,null,null,null,null,null,null,null,null,null,null,null,null,"Aluminij",4010]
[4020,"Antimon","ug/l Sb",null,null,null,null,null,null,null,null,null,null,null,null,null,null,null,null,null,null,"Antimon",4020]
[4030,"Arzen","ug/l As",null,null,null,null,null,null,null,null,null,null,null,null,null,null,null,null,null,null,"Arzen",4030]
[4040,"Baker","ug/l Cu",null,null,null,null,null,null,null,null,null,null,null,null,null,null,null,null,null,null,"Baker",4040]
[4060,"Baker-sed.","mg/kg",null,null,null,null,null,null,null,null,null,null,null,null,null,null,null,null,null,null,"Baker-sed.",4060]
[4070,"Barij","ug/l Ba",null,null,null,null,null,null,null,null,null,null,null,null,null,null,null,null,null,null,"Barij",4070]
[4080,"Berilij","ug/l Be",null,null,null,null,null,null,null,null,null,null,null,null,null,null,null,null,null,null,"Berilij",4080]
[4090,"Cink","ug/l Zn",null,null,null,null,null,null,null,null,null,null,null,null,null,null,null,null,null,null,"Cink",4090]
[4110,"Cink-sed.","mg/kg",null,null,null,null,null,null,null,null,null,null,null,null,null,null,null,null,null,null,"Cink-sed.",4110]
[4120,"Kadmij","ug/l Cd",null,null,null,null,null,null,null,null,null,null,null,null,null,null,null,null,null,null,"Kadmij",4120]
[4140,"Kadmij-sed.","mg/kg",null,null,null,null,null,null,null,null,null,null,null,null,null,null,null,null,null,null,"Kadmij-sed.",4140]
[4150,"Kobalt","ug/l Co",null,null,null,null,null,null,null,null,null,null,null,null,null,null,null,null,null,null,"Kobalt",4150]
[4160,"Kositer","ug/l Sn",null,null,null,null,null,null,null,null,null,null,null,null,null,null,null,null,null,null,"Kositer",4160]
[4170,"Krom 3+","µg/l",null,null,null,null,null,null,null,null,null,null,null,null,null,null,null,null,null,null,"Krom 3+",4170]
[4180,"Krom (6+)","ug/l Cr6+",null,null,null,null,null,null,null,null,null,null,null,null,null,null,null,null,null,null,"Krom (6+)",4180]
[4185,"Krom 6+","mg/kg",null,null,null,null,null,null,null,null,null,null,null,null,null,null,null,null,null,null,"Krom 6+",4185]
[4190,"Krom (skupno)","ug/l Cr",null,null,null,null,null,null,null,null,null,null,null,null,null,null,null,null,null,null,"Krom (skupno)",4190]
[4210,"Krom-sed.","mg/kg",null,null,null,null,null,null,null,null,null,null,null,null,null,null,null,null,null,null,"Krom-sed.",4210]
[4220,"Molibden","ug/l Mo",null,null,null,null,null,null,null,null,null,null,null,null,null,null,null,null,null,null,"Molibden",4220]
[4230,"Nikelj","ug/l Ni",null,null,null,null,null,null,null,null,null,null,null,null,null,null,null,null,null,null,"Nikelj",4230]
[4250,"Nikelj-sed.","mg/kg",null,null,null,null,null,null,null,null,null,null,null,null,null,null,null,null,null,null,"Nikelj-sed.",4250]
[4260,"Selen","ug/l Se",null,null,null,null,null,null,null,null,null,null,null,null,null,null,null,null,null,null,"Selen",4260]
[4270,"Srebro","ug/l Ag",null,null,null,null,null,null,null,null,null,null,null,null,null,null,null,null,null,null,"Srebro",4270]
[4280,"Stroncij-filt.","µg/l",null,null,null,null,null,null,null,null,null,null,null,null,null,null,null,null,null,null,"Stroncij-filt.",4280]
[4290,"Svinec","ug/l Pb",null,null,null,null,null,null,null,null,null,null,null,null,null,null,null,null,null,null,"Svinec",4290]
[4310,"Svinec-sed.","mg/kg",null,null,null,null,null,null,null,null,null,null,null,null,null,null,null,null,null,null,"Svinec-sed.",4310]
[4320,"Uran-filt.","µg/l",null,null,null,null,null,null,null,null,null,null,null,null,null,null,null,null,null,null,"Uran-filt.",4320]
[4330,"Vanadij","ug/l V",null,null,null,null,null,null,null,null,null,null,null,null,null,null,null,null,null,null,"Vanadij",4330]
[4340,"Živi srebro","ug/l Hg",null,null,null,null,null,null,null,null,null,null,null,null,null,null,null,null,null,null,"Živi srebro",4340]
[4360,"Živo srebro-sed.","mg/kg",null,null,null,null,null,null,null,null,null,null,null,null,null,null,null,null,null,null,"Živo srebro-sed.",4360]
[4370,"Titan","ug/l Ti",null,null,null,null,null,null,null,null,null,null,null,null,null,null,null,null,null,null,"Titan",4370]
[4480,"Cezij-filt.","µg/L",null,null,null,null,null,null,null,null,null,null,null,null,null,null,null,null,null,null,"Cezij-filt.",4480]
[4485,"Rubidij-filt.","µg/L",null,null,null,null,null,null,null,null,null,null,null,null,null,null,null,null,null,null,"Rubidij-filt.",4485]
[4490,"Galij-filt.","µg/L",null,null,null,null,null,null,null,null,null,null,null,null,null,null,null,null,null,null,"Galij-filt.",4490]
[4495,"Talij","ug/l Tl",null,null,null,null,null,null,null,null,null,null,null,null,null,null,null,null,null,null,"Talij",4495]
[4500,"Telur","ug/l Te",null,null,null,null,null,null,null,null,null,null,null,null,null,null,null,null,null,null,"Telur",4500]
[5010,"Fenolne snovi","ug/l",null,null,null,null,null,null,null,null,null,null,null,null,null,null,null,null,null,null,"Fenolne snovi",5010]
[5020,"Fenolne snovi (hlapne z vodno paro)","µg/l",null,null,null,null,null,null,null,null,null,null,null,null,null,null,null,null,null,null,"Fenolne snovi (hlapne z vodno paro)",5020]
[5030,"2-Metoksifenol","µg/l",null,null,null,null,null,null,null,null,null,null,null,null,null,null,null,null,null,null,"2-Metoksifenol",5030]
[5032,"2-Metoksifenol, sed.","mg/kg",null,null,null,null,null,null,null,null,null,null,null,null,null,null,null,null,null,null,"2-Metoksifenol, sed.",5032]
[5040,"2-Metilfenol","µg/l",null,null,null,null,null,null,null,null,null,null,null,null,null,null,null,null,null,null,"2-Metilfenol",5040]
[5042,"2-Metilfenol, sed.","mg/kg",null,null,null,null,null,null,null,null,null,null,null,null,null,null,null,null,null,null,"2-Metilfenol, sed.",5042]
[5050,"Fenol","µg/l",null,null,null,null,null,null,null,null,null,null,null,null,null,null,null,null,null,null,"Fenol",5050]
[5052,"Fenol, sed.","mg/kg",null,null,null,null,null,null,null,null,null,null,null,null,null,null,null,null,null,null,"Fenol, sed.",5052]
[5060,"3-Metilfenol+ 4-Metilfenol","µg/l",null,null,null,null,null,null,null,null,null,null,null,null,null,null,null,null,null,null,"3-Metilfenol+ 4-Metilfenol",5060]
[5062,"3-Metilfenol+4-Metilfenol,sed.","mg/kg",null,null,null,null,null,null,null,null,null,null,null,null,null,null,null,null,null,null,"3-Metilfenol+4-Metilfenol,sed.",5062]
[5063,"3-metilfenol","µg/l",null,null,null,null,null,null,null,null,null,null,null,null,null,null,null,null,null,null,"3-metilfenol",5063]
[5065,"4-metilfenol","µg/l",null,null,null,null,null,null,null,null,null,null,null,null,null,null,null,null,null,null,"4-metilfenol",5065]
[5070,"2,4-Dimetilfenol","µg/l",null,null,null,null,null,null,null,null,null,null,null,null,null,null,null,null,null,null,{"$f":"B259","v":"2,4-Dimetilfenol"},{"$f":"A259","v":5070}]
[5072,"2,4-Dimetilfenol, sed.","mg/kg",null,null,null,null,null,null,null,null,null,null,null,null,null,null,null,null,null,null,"2,4-Dimetilfenol, sed.",5072]
[5080,"3,5-Dimetilfenol","µg/l",null,null,null,null,null,null,null,null,null,null,null,null,null,null,null,null,null,null,"3,5-Dimetilfenol",5080]
[5082,"3,5-Dimetilfenol, sed.","mg/kg",null,null,null,null,null,null,null,null,null,null,null,null,null,null,null,null,null,null,"3,5-Dimetilfenol, sed.",5082]
[5090,"2-Klorofenol","µg/l",null,null,null,null,null,null,null,null,null,null,null,null,null,null,null,null,null,null,"2-Klorofenol",5090]
[5092,"2-Klorofenol, sed.","mg/kg",null,null,null,null,null,null,null,null,null,null,null,null,null,null,null,null,null,null,"2-Klorofenol, sed.",5092]
[5100,"2-Nitrofenol","µg/l",null,null,null,null,null,null,null,null,null,null,null,null,null,null,null,null,null,null,"2-Nitrofenol",5100]
[5102,"2-Nitrofenol, sed.","mg/kg",null,null,null,null,null,null,null,null,null,null,null,null,null,null,null,null,null,null,"2-Nitrofenol, sed.",5102]
[5110,"2,4-Diklorofenol","µg/l",null,null,null,null,null,null,null,null,null,null,null,null,null,null,null,null,null,null,"2,4-Diklorofenol",5110]
[5112,"2,4-Diklorofenol, sed.","mg/kg",null,null,null,null,null,null,null,null,null,null,null,null,null,null,null,null,null,null,"2,4-Diklorofenol, sed.",5112]
[5120,"4-Kloro-3-metilfenol","µg/l",null,null,null,null,null,null,null,null,null,null,null,null,null,null,null,null,null,null,"4-Kloro-3-metilfenol",5120]
[5122,"4-Kloro-3-metilfenol, sed.","mg/kg",null,null,null,null,null,null,null,null,null,null,null,null,null,null,null,null,null,null,"4-Kloro-3-metilfenol, sed.",5122]
[5130,"2,4,6-Triklorofenol","µg/l",null,null,null,null,null,null,null,null,null,null,null,null,null,null,null,null,null,null,"2,4,6-Triklorofenol",5130]
[5132,"2,4,6-Triklorofenol, sed.","mg/kg",null,null,null,null,null,null,null,null,null,null,null,null,null,null,null,null,null,null,"2,4,6-Triklorofenol, sed.",5132]
[5136,"heksa(metoksimetil)melamin (HMMM)","µg/l",null,null,null,null,null,null,null,null,null,null,null,null,null,null,null,null,null,null,"heksa(metoksimetil)melamin (HMMM)",5136]
[5140,"2,4-Dinitrofenol","µg/l",null,null,null,null,null,null,null,null,null,null,null,null,null,null,null,null,null,null,"2,4-Dinitrofenol",5140]
[5142,"2,4-Dinitrofenol, sed.","mg/kg",null,null,null,null,null,null,null,null,null,null,null,null,null,null,null,null,null,null,"2,4-Dinitrofenol, sed.",5142]
[5150,"4-Nitrofenol","µg/l",null,null,null,null,null,null,null,null,null,null,null,null,null,null,null,null,null,null,"4-Nitrofenol",5150]
[5152,"4-Nitrofenol, sed.","mg/kg",null,null,null,null,null,null,null,null,null,null,null,null,null,null,null,null,null,null,"4-Nitrofenol, sed.",5152]
[5160,"2-Metil-4,6-dinitrofenol","µg/l",null,null,null,null,null,null,null,null,null,null,null,null,null,null,null,null,null,null,"2-Metil-4,6-dinitrofenol",5160]
[5162,"2-Metil-4,6-dinitrofenol, sed.","mg/kg",null,null,null,null,null,null,null,null,null,null,null,null,null,null,null,null,null,null,"2-Metil-4,6-dinitrofenol, sed.",5162]
[5170,"Pentaklorofenol","µg/l",null,null,null,null,null,null,null,null,null,null,null,null,null,null,null,null,null,null,"Pentaklorofenol",5170]
[5172,"Pentaklorofenol, sed.","mg/kg",null,null,null,null,null,null,null,null,null,null,null,null,null,null,null,null,null,null,"Pentaklorofenol, sed.",5172]
[5399,"diklorobenzeni (vsota)","µg/l",null,null,null,null,null,null,null,null,null,null,null,null,null,null,null,null,null,null,"diklorobenzeni (vsota)",5399]
[5400,"Klorobenzeni (vsota)","µg/l",null,null,null,null,null,null,null,null,null,null,null,null,null,null,null,null,null,null,"Klorobenzeni (vsota)",5400]
[5476,"2-(2-etoksietoksi)etanol","mg/l",null,null,null,null,null,null,null,null,null,null,null,null,null,null,null,null,null,null,"2-(2-etoksietoksi)etanol",5476]
[5496,"Glikol etri (vsota)","mg/l",null,null,null,null,null,null,null,null,null,null,null,null,null,null,null,null,null,null,"Glikol etri (vsota)",5496]
[6010,"Alaklor","ug/l",null,null,null,null,null,null,null,null,null,null,null,null,null,null,null,null,null,null,"Alaklor",6010]
[6012,"Alaklor sed.","mg/kg",null,null,null,null,null,null,null,null,null,null,null,null,null,null,null,null,null,null,"Alaklor sed.",6012]
[6020,"Metolaklor","ug/l",null,null,null,null,null,null,null,null,null,null,null,null,null,null,null,null,null,null,"Metolaklor",6020]
[6022,"Metolaklor sed.","mg/kg",null,null,null,null,null,null,null,null,null,null,null,null,null,null,null,null,null,null,"Metolaklor sed.",6022]
[6023,"Metabolit S-metolaklora OXA","µg/l",null,null,null,null,null,null,null,null,null,null,null,null,null,null,null,null,null,null,"Metabolit S-metolaklora OXA",6023]
[6025,"Metabolit S-metolaklora ESA","µg/l",null,null,null,null,null,null,null,null,null,null,null,null,null,null,null,null,null,null,"Metabolit S-metolaklora ESA",6025]
[6030,"Aldrin","µg/l",null,null,null,null,null,null,null,null,null,null,null,null,null,null,null,null,null,null,"Aldrin",6030]
[6032,"Aldrin sed.","mg/kg",null,null,null,null,null,null,null,null,null,null,null,null,null,null,null,null,null,null,"Aldrin sed.",6032]
[6040,"DDT (p,p)","µg/l",null,null,null,null,null,null,null,null,null,null,null,null,null,null,null,null,null,null,"DDT (p,p)",6040]
[6041,"DDT (p,p) sed.","mg/kg",null,null,null,null,null,null,null,null,null,null,null,null,null,null,null,null,null,null,"DDT (p,p) sed.",6041]
[6042,"DDT (o,p)","µg/l",null,null,null,null,null,null,null,null,null,null,null,null,null,null,null,null,null,null,"DDT (o,p)",6042]
[6043,"DDT(o,p) sed.","mg/kg",null,null,null,null,null,null,null,null,null,null,null,null,null,null,null,null,null,null,"DDT(o,p) sed.",6043]
[6050,"DDE (p,p)","µg/l",null,null,null,null,null,null,null,null,null,null,null,null,null,null,null,null,null,null,"DDE (p,p)",6050]
[6051,"DDE (p,p) sed.","mg/kg",null,null,null,null,null,null,null,null,null,null,null,null,null,null,null,null,null,null,"DDE (p,p) sed.",6051]
[6052,"DDE (o,p)","µg/l",null,null,null,null,null,null,null,null,null,null,null,null,null,null,null,null,null,null,"DDE (o,p)",6052]
[6053,"DDE(o,p) sed.","mg/kg",null,null,null,null,null,null,null,null,null,null,null,null,null,null,null,null,null,null,"DDE(o,p) sed.",6053]
[6060,"DDD (o,p)","µg/l",null,null,null,null,null,null,null,null,null,null,null,null,null,null,null,null,null,null,"DDD (o,p)",6060]
[6062,"DDD (o,p) sed.","mg/kg",null,null,null,null,null,null,null,null,null,null,null,null,null,null,null,null,null,null,"DDD (o,p) sed.",6062]
[6070,"DDD (p,p)","µg/l",null,null,null,null,null,null,null,null,null,null,null,null,null,null,null,null,null,null,"DDD (p,p)",6070]
[6072,"DDD (p,p) sed.","mg/kg",null,null,null,null,null,null,null,null,null,null,null,null,null,null,null,null,null,null,"DDD (p,p) sed.",6072]
[6080,"Dieldrin","µg/l",null,null,null,null,null,null,null,null,null,null,null,null,null,null,null,null,null,null,"Dieldrin",6080]
[6082,"Dieldrin sed.","mg/kg",null,null,null,null,null,null,null,null,null,null,null,null,null,null,null,null,null,null,"Dieldrin sed.",6082]
[6090,"Endrin","µg/l",null,null,null,null,null,null,null,null,null,null,null,null,null,null,null,null,null,null,"Endrin",6090]
[6092,"Endrin sed.","mg/kg",null,null,null,null,null,null,null,null,null,null,null,null,null,null,null,null,null,null,"Endrin sed.",6092]
[6095,"izodrin","µg/l",null,null,null,null,null,null,null,null,null,null,null,null,null,null,null,null,null,null,"izodrin",6095]
[6100,"Heptaklor","µg/l",null,null,null,null,null,null,null,null,null,null,null,null,null,null,null,null,null,null,"Heptaklor",6100]
[6102,"Heptaklor sed.","mg/kg",null,null,null,null,null,null,null,null,null,null,null,null,null,null,null,null,null,null,"Heptaklor sed.",6102]
[6110,"Heptaklorepoksid","µg/l",null,null,null,null,null,null,null,null,null,null,null,null,null,null,null,null,null,null,"Heptaklorepoksid",6110]
[6111,"cis-heptaklorepoksid","µg/l",null,null,null,null,null,null,null,null,null,null,null,null,null,null,null,null,null,null,"cis-heptaklorepoksid",6111]
[6112,"trans-heptaklorepoksid","µg/l",null,null,null,null,null,null,null,null,null,null,null,null,null,null,null,null,null,null,"trans-heptaklorepoksid",6112]
[6115,"cis-Klordan","µg/l",null,null,null,null,null,null,null,null,null,null,null,null,null,null,null,null,null,null,"cis-Klordan",6115]
[6116,"trans-Klordan","µg/l",null,null,null,null,null,null,null,null,null,null,null,null,null,null,null,null,null,null,"trans-Klordan",6116]
[6117,"cis-Klordan sed.","mg/kg",null,null,null,null,null,null,null,null,null,null,null,null,null,null,null,null,null,null,"cis-Klordan sed.",6117]
[6118,"trans-Klordan sed.","mg/kg",null,null,null,null,null,null,null,null,null,null,null,null,null,null,null,null,null,null,"trans-Klordan sed.",6118]
[6120,"alfa-HCH","µg/l",null,null,null,null,null,null,null,null,null,null,null,null,null,null,null,null,null,null,"alfa-HCH",6120]
[6122,"alfa - HCH sed.","mg/kg",null,null,null,null,null,null,null,null,null,null,null,null,null,null,null,null,null,null,"alfa - HCH sed.",6122]
[6130,"beta-HCH","µg/l",null,null,null,null,null,null,null,null,null,null,null,null,null,null,null,null,null,null,"beta-HCH",6130]
[6132,"beta - HCH sed.","mg/kg",null,null,null,null,null,null,null,null,null,null,null,null,null,null,null,null,null,null,{"$f":"B323","v":"beta - HCH sed."},{"$f":"A323","v":6132}]
[6140,"gama-HCH (Lindan)","µg/l",null,null,null,null,null,null,null,null,null,null,null,null,null,null,null,null,null,null,"gama-HCH (Lindan)",6140]
[6142,"gama - HCH (Lindan) sed.","mg/kg",null,null,null,null,null,null,null,null,null,null,null,null,null,null,null,null,null,null,"gama - HCH (Lindan) sed.",6142]
[6150,"delta-HCH","µg/l",null,null,null,null,null,null,null,null,null,null,null,null,null,null,null,null,null,null,"delta-HCH",6150]
[6152,"delta - HCH sed.","mg/kg",null,null,null,null,null,null,null,null,null,null,null,null,null,null,null,null,null,null,"delta - HCH sed.",6152]
[6155,"pentaklorobenzen","µg/l",null,null,null,null,null,null,null,null,null,null,null,null,null,null,null,null,null,null,"pentaklorobenzen",6155]
[6160,"Heksaklorbenzen","µg/l",null,null,null,null,null,null,null,null,null,null,null,null,null,null,null,null,null,null,"Heksaklorbenzen",6160]
[6162,"Heksaklorobenzen sed.","mg/kg",null,null,null,null,null,null,null,null,null,null,null,null,null,null,null,null,null,null,"Heksaklorobenzen sed.",6162]
[6163,"1,2,3-Triklorobenzen","µg/l",null,null,null,null,null,null,null,null,null,null,null,null,null,null,null,null,null,null,"1,2,3-Triklorobenzen",6163]
[6164,"1,2,4-Triklorobenzen","µg/l",null,null,null,null,null,null,null,null,null,null,null,null,null,null,null,null,null,null,"1,2,4-Triklorobenzen",6164]
[6165,"1,3,5-Triklorobenzen","µg/l",null,null,null,null,null,null,null,null,null,null,null,null,null,null,null,null,null,null,"1,3,5-Triklorobenzen",6165]
[6166,"1,2,3-Triklorobenzen sed.","mg/kg",null,null,null,null,null,null,null,null,null,null,null,null,null,null,null,null,null,null,"1,2,3-Triklorobenzen sed.",6166]
[6167,"1,2,4-Triklorobenzen sed.","mg/kg",null,null,null,null,null,null,null,null,null,null,null,null,null,null,null,null,null,null,"1,2,4-Triklorobenzen sed.",6167]
[6168,"1,3,5-Triklorobenzen sed.","mg/kg",null,null,null,null,null,null,null,null,null,null,null,null,null,null,null,null,null,null,"1,3,5-Triklorobenzen sed.",6168]
[6169,"Triklorobenzeni","µg/l",null,null,null,null,null,null,null,null,null,null,null,null,null,null,null,null,null,null,"Triklorobenzeni",6169]
[6170,"Heksaklorbutadien","µg/l",null,null,null,null,null,null,null,null,null,null,null,null,null,null,null,null,null,null,"Heksaklorbutadien",6170]
[6172,"Heksaklorobutadien sed.","mg/kg",null,null,null,null,null,null,null,null,null,null,null,null,null,null,null,null,null,null,"Heksaklorobutadien sed.",6172]
[6174,"Metoksiklor (o,p) sed.","mg/kg",null,null,null,null,null,null,null,null,null,null,null,null,null,null,null,null,null,null,"Metoksiklor (o,p) sed.",6174]
[6175,"Metoksiklor (o,p)","µg/l",null,null,null,null,null,null,null,null,null,null,null,null,null,null,null,null,null,null,"Metoksiklor (o,p)",6175]
[6176,"Metoksiklor (p,p)","µg/l",null,null,null,null,null,null,null,null,null,null,null,null,null,null,null,null,null,null,"Metoksiklor (p,p)",6176]
[6180,"Endosulfan(alfa+beta)","µg/l",null,null,null,null,null,null,null,null,null,null,null,null,null,null,null,null,null,null,"Endosulfan(alfa+beta)",6180]
[6181,"Endosulfan(alfa)","µg/l",null,null,null,null,null,null,null,null,null,null,null,null,null,null,null,null,null,null,"Endosulfan(alfa)",6181]
[6182,"Endosulfan(beta)","µg/l",null,null,null,null,null,null,null,null,null,null,null,null,null,null,null,null,null,null,"Endosulfan(beta)",6182]
[6183,"Endosulfan(alfa) sed.","mg/kg",null,null,null,null,null,null,null,null,null,null,null,null,null,null,null,null,null,null,"Endosulfan(alfa) sed.",6183]
[6184,"Endosulfan(beta) sed.","mg/kg",null,null,null,null,null,null,null,null,null,null,null,null,null,null,null,null,null,null,"Endosulfan(beta) sed.",6184]
[6185,"Endosulfan sulfat","µg/l",null,null,null,null,null,null,null,null,null,null,null,null,null,null,null,null,null,null,"Endosulfan sulfat",6185]
[6186,"Endosulfan sulfat sed.","mg/kg",null,null,null,null,null,null,null,null,null,null,null,null,null,null,null,null,null,null,"Endosulfan sulfat sed.",6186]
[6190,"Paration-etil","µg/l",null,null,null,null,null,null,null,null,null,null,null,null,null,null,null,null,null,null,"Paration-etil",6190]
[6200,"Paration-metil","µg/l",null,null,null,null,null,null,null,null,null,null,null,null,null,null,null,null,null,null,"Paration-metil",6200]
[6202,"Paration-metil sed.","mg/kg",null,null,null,null,null,null,null,null,null,null,null,null,null,null,null,null,null,null,"Paration-metil sed.",6202]
[6205,"Glifosat","µg/l",null,null,null,null,null,null,null,null,null,null,null,null,null,null,null,null,null,null,"Glifosat",6205]
[6206,"Glufosinat-amonijeva sol","µg/l",null,null,null,null,null,null,null,null,null,null,null,null,null,null,null,null,null,null,"Glufosinat-amonijeva sol",6206]
[6207,"Amonij-metil fosforjeva kislina (AMPA)","µg/l",null,null,null,null,null,null,null,null,null,null,null,null,null,null,null,null,null,null,"Amonij-metil fosforjeva kislina (AMPA)",6207]
[6210,"Atrazin","ug/l",null,null,null,null,null,null,null,null,null,null,null,null,null,null,null,null,null,null,"Atrazin",6210]
[6212,"Atrazin-sed.","mg/kg",null,null,null,null,null,null,null,null,null,null,null,null,null,null,null,null,null,null,"Atrazin-sed.",6212]
[6220,"Desetil - atrazin","ug/l",null,null,null,null,null,null,null,null,null,null,null,null,null,null,null,null,null,null,"Desetil - atrazin",6220]
[6222,"Desetil-atrazin sed.","mg/kg",null,null,null,null,null,null,null,null,null,null,null,null,null,null,null,null,null,null,"Desetil-atrazin sed.",6222]
[6230,"Desizopropil - atrazin","ug/l",null,null,null,null,null,null,null,null,null,null,null,null,null,null,null,null,null,null,"Desizopropil - atrazin",6230]
[6232,"Desizopropil-atrazin sed.","mg/kg",null,null,null,null,null,null,null,null,null,null,null,null,null,null,null,null,null,null,"Desizopropil-atrazin sed.",6232]
[6240,"Simazin","ug/l",null,null,null,null,null,null,null,null,null,null,null,null,null,null,null,null,null,null,"Simazin",6240]
[6242,"Simazin sed.","mg/kg",null,null,null,null,null,null,null,null,null,null,null,null,null,null,null,null,null,null,"Simazin sed.",6242]
[6245,"Klorotalonil","µg/l",null,null,null,null,null,null,null,null,null,null,null,null,null,null,null,null,null,null,"Klorotalonil",6245]
[6250,"Propazin","ug/l",null,null,null,null,null,null,null,null,null,null,null,null,null,null,null,null,null,null,"Propazin",6250]
[6252,"Propazin sed.","mg/kg",null,null,null,null,null,null,null,null,null,null,null,null,null,null,null,null,null,null,"Propazin sed.",6252]
[6260,"Promterin","ug/l",null,null,null,null,null,null,null,null,null,null,null,null,null,null,null,null,null,null,"Promterin",6260]
[6262,"Prometrin sed.","mg/kg",null,null,null,null,null,null,null,null,null,null,null,null,null,null,null,null,null,null,"Prometrin sed.",6262]
[6270,"Cianazin","µg/l",null,null,null,null,null,null,null,null,null,null,null,null,null,null,null,null,null,null,"Cianazin",6270]
[6272,"Cianazin sed.","mg/kg",null,null,null,null,null,null,null,null,null,null,null,null,null,null,null,null,null,null,"Cianazin sed.",6272]
[6275,"penkonazol","µg/l",null,null,null,null,null,null,null,null,null,null,null,null,null,null,null,null,null,null,"penkonazol",6275]
[6280,"Terbutilazin","ug/l",null,null,null,null,null,null,null,null,null,null,null,null,null,null,null,null,null,null,"Terbutilazin",6280]
[6281,"Desetil-terbutilazin","µg/l",null,null,null,null,null,null,null,null,null,null,null,null,null,null,null,null,null,null,"Desetil-terbutilazin",6281]
[6282,"Terbutilazin sed.","mg/kg",null,null,null,null,null,null,null,null,null,null,null,null,null,null,null,null,null,null,"Terbutilazin sed.",6282]
[6285,"Pirimifos-metil","µg/l",null,null,null,null,null,null,null,null,null,null,null,null,null,null,null,null,null,null,"Pirimifos-metil",6285]
[6290,"Terbutrin","µg/l",null,null,null,null,null,null,null,null,null,null,null,null,null,null,null,null,null,null,"Terbutrin",6290]
[6292,"Terbutrin sed.","mg/kg",null,null,null,null,null,null,null,null,null,null,null,null,null,null,null,null,null,null,"Terbutrin sed.",6292]
[6295,"Izoksaflutol","µg/l",null,null,null,null,null,null,null,null,null,null,null,null,null,null,null,null,null,null,"Izoksaflutol",6295]
[6300,"Terbumeton","µg/l",null,null,null,null,null,null,null,null,null,null,null,null,null,null,null,null,null,null,"Terbumeton",6300]
[6304,"Sekbumeton","µg/l",null,null,null,null,null,null,null,null,null,null,null,null,null,null,null,null,null,null,"Sekbumeton",6304]
[6305,"Sekbumeton sed.","mg/kg",null,null,null,null,null,null,null,null,null,null,null,null,null,null,null,null,null,null,"Sekbumeton sed.",6305]
[6307,"Ametrin","µg/l",null,null,null,null,null,null,null,null,null,null,null,null,null,null,null,null,null,null,"Ametrin",6307]
[6310,"Metamitron","µg/l",null,null,null,null,null,null,null,null,null,null,null,null,null,null,null,null,null,null,"Metamitron",6310]
[6320,"Metribuzin","µg/l",null,null,null,null,null,null,null,null,null,null,null,null,null,null,null,null,null,null,"Metribuzin",6320]
[6322,"Heksazinon","µg/l",null,null,null,null,null,null,null,null,null,null,null,null,null,null,null,null,null,null,"Heksazinon",6322]
[6323,"Heksazinon sed.","mg/kg",null,null,null,null,null,null,null,null,null,null,null,null,null,null,null,null,null,null,"Heksazinon sed.",6323]
[6325,"Triadimefon","µg/l",null,null,null,null,null,null,null,null,null,null,null,null,null,null,null,null,null,null,{"$f":"B387","v":"Triadimefon"},{"$f":"A387","v":6325}]
[6326,"Triadimefon sed.","mg/kg",null,null,null,null,null,null,null,null,null,null,null,null,null,null,null,null,null,null,"Triadimefon sed.",6326]
[6327,"Propikonazol","µg/l",null,null,null,null,null,null,null,null,null,null,null,null,null,null,null,null,null,null,"Propikonazol",6327]
[6330,"Bromacil","µg/l",null,null,null,null,null,null,null,null,null,null,null,null,null,null,null,null,null,null,"Bromacil",6330]
[6332,"Diklobenil-sed.","mg/kg",null,null,null,null,null,null,null,null,null,null,null,null,null,null,null,null,null,null,"Diklobenil-sed.",6332]
[6333,"2,6-diklorobenzamid-sed.","mg/kg",null,null,null,null,null,null,null,null,null,null,null,null,null,null,null,null,null,null,"2,6-diklorobenzamid-sed.",6333]
[6334,"Diklobenil","µg/l",null,null,null,null,null,null,null,null,null,null,null,null,null,null,null,null,null,null,"Diklobenil",6334]
[6335,"2,6-diklorobenzamid","µg/l",null,null,null,null,null,null,null,null,null,null,null,null,null,null,null,null,null,null,"2,6-diklorobenzamid",6335]
[6336,"Bromoksinil","µg/l",null,null,null,null,null,null,null,null,null,null,null,null,null,null,null,null,null,null,"Bromoksinil",6336]
[6337,"Ioksinil","µg/l",null,null,null,null,null,null,null,null,null,null,null,null,null,null,null,null,null,null,"Ioksinil",6337]
[6339,"Klortoluron sed.","mg/kg",null,null,null,null,null,null,null,null,null,null,null,null,null,null,null,null,null,null,"Klortoluron sed.",6339]
[6340,"Diuron","µg/l",null,null,null,null,null,null,null,null,null,null,null,null,null,null,null,null,null,null,"Diuron",6340]
[6341,"Klortoluron","ug/l",null,null,null,null,null,null,null,null,null,null,null,null,null,null,null,null,null,null,"Klortoluron",6341]
[6342,"Metobromuron","µg/l",null,null,null,null,null,null,null,null,null,null,null,null,null,null,null,null,null,null,"Metobromuron",6342]
[6343,"Izoproturon","µg/l",null,null,null,null,null,null,null,null,null,null,null,null,null,null,null,null,null,null,"Izoproturon",6343]
[6344,"Monuron","µg/l",null,null,null,null,null,null,null,null,null,null,null,null,null,null,null,null,null,null,"Monuron",6344]
[6345,"Linuron","µg/l",null,null,null,null,null,null,null,null,null,null,null,null,null,null,null,null,null,null,"Linuron",6345]
[6346,"Monolinuron","µg/l",null,null,null,null,null,null,null,null,null,null,null,null,null,null,null,null,null,null,"Monolinuron",6346]
[6347,"Klorbromuron","µg/l",null,null,null,null,null,null,null,null,null,null,null,null,null,null,null,null,null,null,"Klorbromuron",6347]
[6348,"Triasulfuron","µg/l",null,null,null,null,null,null,null,null,null,null,null,null,null,null,null,null,null,null,"Triasulfuron",6348]
[6350,"Piridat-M","µg/l",null,null,null,null,null,null,null,null,null,null,null,null,null,null,null,null,null,null,"Piridat-M",6350]
[6352,"Piridat","µg/l",null,null,null,null,null,null,null,null,null,null,null,null,null,null,null,null,null,null,"Piridat",6352]
[6360,"3-fenil-4-hidroksi-6-kloropiridazin","µg/l",null,null,null,null,null,null,null,null,null,null,null,null,null,null,null,null,null,null,"3-fenil-4-hidroksi-6-kloropiridazin",6360]
[6362,"Buturon","µg/l",null,null,null,null,null,null,null,null,null,null,null,null,null,null,null,null,null,null,"Buturon",6362]
[6364,"Fluorometuron","µg/l",null,null,null,null,null,null,null,null,null,null,null,null,null,null,null,null,null,null,"Fluorometuron",6364]
[6366,"Metoksuron","µg/l",null,null,null,null,null,null,null,null,null,null,null,null,null,null,null,null,null,null,"Metoksuron",6366]
[6368,"Neburon","µg/l",null,null,null,null,null,null,null,null,null,null,null,null,null,null,null,null,null,null,"Neburon",6368]
[6370,"2,4-D","µg/l",null,null,null,null,null,null,null,null,null,null,null,null,null,null,null,null,null,null,"2,4-D",6370]
[6380,"2,4-DP","µg/l",null,null,null,null,null,null,null,null,null,null,null,null,null,null,null,null,null,null,"2,4-DP",6380]
[6390,"2,4,5-T","µg/l",null,null,null,null,null,null,null,null,null,null,null,null,null,null,null,null,null,null,"2,4,5-T",6390]
[6400,"MCPA","µg/l",null,null,null,null,null,null,null,null,null,null,null,null,null,null,null,null,null,null,"MCPA",6400]
[6410,"MCPB","µg/l",null,null,null,null,null,null,null,null,null,null,null,null,null,null,null,null,null,null,"MCPB",6410]
[6420,"MCPP","µg/l",null,null,null,null,null,null,null,null,null,null,null,null,null,null,null,null,null,null,"MCPP",6420]
[6430,"Sebutilazin","µg/l",null,null,null,null,null,null,null,null,null,null,null,null,null,null,null,null,null,null,"Sebutilazin",6430]
[6440,"Silvex","µg/l",null,null,null,null,null,null,null,null,null,null,null,null,null,null,null,null,null,null,"Silvex",6440]
[6450,"2,4-DB","µg/l",null,null,null,null,null,null,null,null,null,null,null,null,null,null,null,null,null,null,"2,4-DB",6450]
[6460,"a, b, d HCH","µg/l",null,null,null,null,null,null,null,null,null,null,null,null,null,null,null,null,null,null,"a, b, d HCH",6460]
[6470,"Dicamba","µg/l",null,null,null,null,null,null,null,null,null,null,null,null,null,null,null,null,null,null,"Dicamba",6470]
[6480,"Metalaksil","µg/l",null,null,null,null,null,null,null,null,null,null,null,null,null,null,null,null,null,null,"Metalaksil",6480]
[6483,"Pendimetalin sed.","mg/kg",null,null,null,null,null,null,null,null,null,null,null,null,null,null,null,null,null,null,"Pendimetalin sed.",6483]
[6484,"Pendimetalin","µg/l",null,null,null,null,null,null,null,null,null,null,null,null,null,null,null,null,null,null,"Pendimetalin",6484]
[6485,"Trifluralin","µg/l",null,null,null,null,null,null,null,null,null,null,null,null,null,null,null,null,null,null,"Trifluralin",6485]
[6486,"Trifluralin sed.","mg/kg",null,null,null,null,null,null,null,null,null,null,null,null,null,null,null,null,null,null,"Trifluralin sed.",6486]
[6490,"Metazaklor","µg/l",null,null,null,null,null,null,null,null,null,null,null,null,null,null,null,null,null,null,"Metazaklor",6490]
[6492,"Metazaklor sed.","mg/kg",null,null,null,null,null,null,null,null,null,null,null,null,null,null,null,null,null,null,"Metazaklor sed.",6492]
[6500,"Acetoklor","µg/l",null,null,null,null,null,null,null,null,null,null,null,null,null,null,null,null,null,null,"Acetoklor",6500]
[6502,"Acetoklor sed.","mg/kg",null,null,null,null,null,null,null,null,null,null,null,null,null,null,null,null,null,null,"Acetoklor sed.",6502]
[6510,"Bentazon","µg/l",null,null,null,null,null,null,null,null,null,null,null,null,null,null,null,null,null,null,"Bentazon",6510]
[6520,"Dimetenamid","ug/l",null,null,null,null,null,null,null,null,null,null,null,null,null,null,null,null,null,null,"Dimetenamid",6520]
[6522,"Dimetenamid sed.","mg/kg",null,null,null,null,null,null,null,null,null,null,null,null,null,null,null,null,null,null,"Dimetenamid sed.",6522]
[6530,"Flufenacet","µg/l",null,null,null,null,null,null,null,null,null,null,null,null,null,null,null,null,null,null,"Flufenacet",6530]
[6531,"Benalaksil","µg/l",null,null,null,null,null,null,null,null,null,null,null,null,null,null,null,null,null,null,"Benalaksil",6531]
[6532,"Diflufenikan","µg/l",null,null,null,null,null,null,null,null,null,null,null,null,null,null,null,null,null,null,"Diflufenikan",6532]
[6533,"Flukvinkonazol","µg/l",null,null,null,null,null,null,null,null,null,null,null,null,null,null,null,null,null,null,"Flukvinkonazol",6533]
[6534,"Dimetomorf","µg/l",null,null,null,null,null,null,null,null,null,null,null,null,null,null,null,null,null,null,"Dimetomorf",6534]
[6535,"Fenpropidin","µg/l",null,null,null,null,null,null,null,null,null,null,null,null,null,null,null,null,null,null,"Fenpropidin",6535]
[6536,"Klomazon","µg/l",null,null,null,null,null,null,null,null,null,null,null,null,null,null,null,null,null,null,"Klomazon",6536]
[6537,"Tiametoksam","µg/l",null,null,null,null,null,null,null,null,null,null,null,null,null,null,null,null,null,null,"Tiametoksam",6537]
[6540,"Napropamid","µg/l",null,null,null,null,null,null,null,null,null,null,null,null,null,null,null,null,null,null,"Napropamid",6540]
[6542,"Napropamid sed.","mg/kg",null,null,null,null,null,null,null,null,null,null,null,null,null,null,null,null,null,null,"Napropamid sed.",6542]
[6543,"Amidosulfuron","µg/l",null,null,null,null,null,null,null,null,null,null,null,null,null,null,null,null,null,null,"Amidosulfuron",6543]
[6544,"Nikosulfuron","µg/l",null,null,null,null,null,null,null,null,null,null,null,null,null,null,null,null,null,null,"Nikosulfuron",6544]
[6545,"Foramsulfuron","µg/l",null,null,null,null,null,null,null,null,null,null,null,null,null,null,null,null,null,null,"Foramsulfuron",6545]
[6546,"Trifloksistrobin","µg/l",null,null,null,null,null,null,null,null,null,null,null,null,null,null,null,null,null,null,"Trifloksistrobin",6546]
[6547,"Tiakloprid","µg/l",null,null,null,null,null,null,null,null,null,null,null,null,null,null,null,null,null,null,{"$f":"B451","v":"Tiakloprid"},{"$f":"A451","v":6547}]
[6548,"Prosulfuron","µg/l",null,null,null,null,null,null,null,null,null,null,null,null,null,null,null,null,null,null,"Prosulfuron",6548]
[6550,"Prosimidon","µg/l",null,null,null,null,null,null,null,null,null,null,null,null,null,null,null,null,null,null,"Prosimidon",6550]
[6552,"Prosimidon sed.","mg/kg",null,null,null,null,null,null,null,null,null,null,null,null,null,null,null,null,null,null,"Prosimidon sed.",6552]
[6560,"Vinklozolin","µg/l",null,null,null,null,null,null,null,null,null,null,null,null,null,null,null,null,null,null,"Vinklozolin",6560]
[6562,"Vinklozolin sed.","mg/kg",null,null,null,null,null,null,null,null,null,null,null,null,null,null,null,null,null,null,"Vinklozolin sed.",6562]
[6570,"Folpet","µg/l",null,null,null,null,null,null,null,null,null,null,null,null,null,null,null,null,null,null,"Folpet",6570]
[6574,"Diazinon","µg/l",null,null,null,null,null,null,null,null,null,null,null,null,null,null,null,null,null,null,"Diazinon",6574]
[6580,"Kaptan","µg/l",null,null,null,null,null,null,null,null,null,null,null,null,null,null,null,null,null,null,"Kaptan",6580]
[6584,"fentin hidroksid","µg/l",null,null,null,null,null,null,null,null,null,null,null,null,null,null,null,null,null,null,{"$f":"B460","v":"fentin hidroksid"},{"$f":"A460","v":6584}]
[6590,"Diklofluanid","µg/l",null,null,null,null,null,null,null,null,null,null,null,null,null,null,null,null,null,null,"Diklofluanid",6590]
[6600,"Klorbenzilat","µg/l",null,null,null,null,null,null,null,null,null,null,null,null,null,null,null,null,null,null,"Klorbenzilat",6600]
[6602,"Klorbenzilat sed.","mg/kg",null,null,null,null,null,null,null,null,null,null,null,null,null,null,null,null,null,null,"Klorbenzilat sed.",6602]
[6610,"Brompropilat","µg/l",null,null,null,null,null,null,null,null,null,null,null,null,null,null,null,null,null,null,"Brompropilat",6610]
[6612,"Brompropilat sed.","mg/kg",null,null,null,null,null,null,null,null,null,null,null,null,null,null,null,null,null,null,"Brompropilat sed.",6612]
[6620,"Azoksistrobin","µg/l",null,null,null,null,null,null,null,null,null,null,null,null,null,null,null,null,null,null,"Azoksistrobin",6620]
[6622,"Azoksistrobin sed.","mg/kg",null,null,null,null,null,null,null,null,null,null,null,null,null,null,null,null,null,null,"Azoksistrobin sed.",6622]
[6630,"Tetradifon","µg/l",null,null,null,null,null,null,null,null,null,null,null,null,null,null,null,null,null,null,"Tetradifon",6630]
[6632,"Tetradifon sed.","mg/kg",null,null,null,null,null,null,null,null,null,null,null,null,null,null,null,null,null,null,"Tetradifon sed.",6632]
[6640,"Pirimikarb","µg/l",null,null,null,null,null,null,null,null,null,null,null,null,null,null,null,null,null,null,"Pirimikarb",6640]
[6642,"Pirimikarb sed.","mg/kg",null,null,null,null,null,null,null,null,null,null,null,null,null,null,null,null,null,null,"Pirimikarb sed.",6642]
[6645,"Metiokarb","µg/l",null,null,null,null,null,null,null,null,null,null,null,null,null,null,null,null,null,null,"Metiokarb",6645]
[6650,"Dazomet","µg/l",null,null,null,null,null,null,null,null,null,null,null,null,null,null,null,null,null,null,"Dazomet",6650]
[6660,"Mankozeb","µg/l",null,null,null,null,null,null,null,null,null,null,null,null,null,null,null,null,null,null,"Mankozeb",6660]
[6670,"Metiram","µg/l",null,null,null,null,null,null,null,null,null,null,null,null,null,null,null,null,null,null,"Metiram",6670]
[6680,"Mezotrion","µg/l",null,null,null,null,null,null,null,null,null,null,null,null,null,null,null,null,null,null,"Mezotrion",6680]
[6690,"Permetrin","µg/l",null,null,null,null,null,null,null,null,null,null,null,null,null,null,null,null,null,null,"Permetrin",6690]
[6692,"Permetrin sed.","mg/kg",null,null,null,null,null,null,null,null,null,null,null,null,null,null,null,null,null,null,"Permetrin sed.",6692]
[6700,"Kloridazon","µg/l",null,null,null,null,null,null,null,null,null,null,null,null,null,null,null,null,null,null,"Kloridazon",6700]
[6800,"Malation","µg/l",null,null,null,null,null,null,null,null,null,null,null,null,null,null,null,null,null,null,"Malation",6800]
[6802,"Malation sed.","mg/kg",null,null,null,null,null,null,null,null,null,null,null,null,null,null,null,null,null,null,"Malation sed.",6802]
[6805,"Fludioksinil","µg/L",null,null,null,null,null,null,null,null,null,null,null,null,null,null,null,null,null,null,"Fludioksinil",6805]
[6810,"Fenitrotion","µg/l",null,null,null,null,null,null,null,null,null,null,null,null,null,null,null,null,null,null,"Fenitrotion",6810]
[6812,"Fenitrotion sed.","mg/kg",null,null,null,null,null,null,null,null,null,null,null,null,null,null,null,null,null,null,"Fenitrotion sed.",6812]
[6820,"Fention","µg/l",null,null,null,null,null,null,null,null,null,null,null,null,null,null,null,null,null,null,"Fention",6820]
[6822,"Fention sed.","mg/kg",null,null,null,null,null,null,null,null,null,null,null,null,null,null,null,null,null,null,"Fention sed.",6822]
[6830,"Fosetil","µg/l",null,null,null,null,null,null,null,null,null,null,null,null,null,null,null,null,null,null,"Fosetil",6830]
[6840,"Klorfenvinfos","µg/l",null,null,null,null,null,null,null,null,null,null,null,null,null,null,null,null,null,null,"Klorfenvinfos",6840]
[6842,"Klorfenvinfos sed.","mg/kg",null,null,null,null,null,null,null,null,null,null,null,null,null,null,null,null,null,null,"Klorfenvinfos sed.",6842]
[6844,"Klorpirifos etil","µg/l",null,null,null,null,null,null,null,null,null,null,null,null,null,null,null,null,null,null,"Klorpirifos etil",6844]
[6847,"Klorpirifos metil","µg/l",null,null,null,null,null,null,null,null,null,null,null,null,null,null,null,null,null,null,"Klorpirifos metil",6847]
[6850,"Mevinfos","µg/l",null,null,null,null,null,null,null,null,null,null,null,null,null,null,null,null,null,null,"Mevinfos",6850]
[6852,"Mevinfos sed.","mg/kg",null,null,null,null,null,null,null,null,null,null,null,null,null,null,null,null,null,null,"Mevinfos sed.",6852]
[6860,"Diklorvos","µg/l",null,null,null,null,null,null,null,null,null,null,null,null,null,null,null,null,null,null,"Diklorvos",6860]
[6862,"Diklorvos sed.","mg/kg",null,null,null,null,null,null,null,null,null,null,null,null,null,null,null,null,null,null,"Diklorvos sed.",6862]
[6870,"Ometoat","µg/l",null,null,null,null,null,null,null,null,null,null,null,null,null,null,null,null,null,null,"Ometoat",6870]
[6872,"Ometoat sed.","mg/kg",null,null,null,null,null,null,null,null,null,null,null,null,null,null,null,null,null,null,"Ometoat sed.",6872]
[6880,"Dimetoat","µg/l",null,null,null,null,null,null,null,null,null,null,null,null,null,null,null,null,null,null,"Dimetoat",6880]
[6890,"Sulfosat","µg/l",null,null,null,null,null,null,null,null,null,null,null,null,null,null,null,null,null,null,"Sulfosat",6890]
[6900,"Tifensulfuron-metil","µg/l",null,null,null,null,null,null,null,null,null,null,null,null,null,null,null,null,null,null,"Tifensulfuron-metil",6900]
[6902,"Jodosulfuron","µg/l",null,null,null,null,null,null,null,null,null,null,null,null,null,null,null,null,null,null,"Jodosulfuron",6902]
[6904,"Rimsulfuron","µg/l",null,null,null,null,null,null,null,null,null,null,null,null,null,null,null,null,null,null,"Rimsulfuron",6904]
[6906,"Metosulam","µg/l",null,null,null,null,null,null,null,null,null,null,null,null,null,null,null,null,null,null,"Metosulam",6906]
[6908,"Imidakloprid","µg/l",null,null,null,null,null,null,null,null,null,null,null,null,null,null,null,null,null,null,"Imidakloprid",6908]
[6910,"Prosulfokarb","µg/l",null,null,null,null,null,null,null,null,null,null,null,null,null,null,null,null,null,null,"Prosulfokarb",6910]
[6912,"Primisulfuron-metil","µg/l",null,null,null,null,null,null,null,null,null,null,null,null,null,null,null,null,null,null,"Primisulfuron-metil",6912]
[6914,"Tritosulfuron","µg/l",null,null,null,null,null,null,null,null,null,null,null,null,null,null,null,null,null,null,"Tritosulfuron",6914]
[6916,"Dikloprop–P","µg/l",null,null,null,null,null,null,null,null,null,null,null,null,null,null,null,null,null,null,"Dikloprop–P",6916]
[6918,"Dimetaklor","µg/l",null,null,null,null,null,null,null,null,null,null,null,null,null,null,null,null,null,null,"Dimetaklor",6918]
[6920,"Flurokloridon","µg/l",null,null,null,null,null,null,null,null,null,null,null,null,null,null,null,null,null,null,"Flurokloridon",6920]
[6922,"Klopiralid","µg/l",null,null,null,null,null,null,null,null,null,null,null,null,null,null,null,null,null,null,"Klopiralid",6922]
[6924,"Klorantraniliprol","µg/l",null,null,null,null,null,null,null,null,null,null,null,null,null,null,null,null,null,null,"Klorantraniliprol",6924]
[6926,"Petoksamid","µg/l",null,null,null,null,null,null,null,null,null,null,null,null,null,null,null,null,null,null,"Petoksamid",6926]
[6990,"Pesticidi - vsota","ug/l",null,null,null,null,null,null,null,null,null,null,null,null,null,null,null,null,null,null,"Pesticidi - vsota",6990]
[6991,"metidation","µg/l",null,null,null,null,null,null,null,null,null,null,null,null,null,null,null,null,null,null,"metidation",6991]
[7010,"Naftalen","µg/l",null,null,null,null,null,null,null,null,null,null,null,null,null,null,null,null,null,null,"Naftalen",7010]
[7012,"Naftalen-sed.","mg/kg",null,null,null,null,null,null,null,null,null,null,null,null,null,null,null,null,null,null,"Naftalen-sed.",7012]
[7020,"Acenaftilen","µg/l",null,null,null,null,null,null,null,null,null,null,null,null,null,null,null,null,null,null,"Acenaftilen",7020]
[7022,"Acenaftilen-sed.","mg/kg",null,null,null,null,null,null,null,null,null,null,null,null,null,null,null,null,null,null,"Acenaftilen-sed.",7022]
[7030,"Acenaften","µg/l",null,null,null,null,null,null,null,null,null,null,null,null,null,null,null,null,null,null,"Acenaften",7030]
[7032,"Acenaften-sed.","mg/kg",null,null,null,null,null,null,null,null,null,null,null,null,null,null,null,null,null,null,"Acenaften-sed.",7032]
[7040,"Fluoren","µg/l",null,null,null,null,null,null,null,null,null,null,null,null,null,null,null,null,null,null,"Fluoren",7040]
[7042,"Fluoren-sed.","mg/kg",null,null,null,null,null,null,null,null,null,null,null,null,null,null,null,null,null,null,"Fluoren-sed.",7042]
[7050,"Fenantren","µg/l",null,null,null,null,null,null,null,null,null,null,null,null,null,null,null,null,null,null,{"$f":"B524","v":"Fenantren"},{"$f":"A524","v":7050}]
[7052,"Fenantren-sed.","mg/kg",null,null,null,null,null,null,null,null,null,null,null,null,null,null,null,null,null,null,"Fenantren-sed.",7052]
[7060,"Antracen","µg/l",null,null,null,null,null,null,null,null,null,null,null,null,null,null,null,null,null,null,"Antracen",7060]
[7062,"Antracen-sed.","mg/kg",null,null,null,null,null,null,null,null,null,null,null,null,null,null,null,null,null,null,"Antracen-sed.",7062]
[7070,"fluoranten","ug/l",null,null,null,null,null,null,null,null,null,null,null,null,null,null,null,null,null,null,"fluoranten",7070]
[7072,"Fluoranten-sed.","mg/kg",null,null,null,null,null,null,null,null,null,null,null,null,null,null,null,null,null,null,"Fluoranten-sed.",7072]
[7080,"Piren","µg/l",null,null,null,null,null,null,null,null,null,null,null,null,null,null,null,null,null,null,"Piren",7080]
[7082,"Piren-sed.","mg/kg",null,null,null,null,null,null,null,null,null,null,null,null,null,null,null,null,null,null,"Piren-sed.",7082]
[7090,"Benzo(a)antracen","µg/l",null,null,null,null,null,null,null,null,null,null,null,null,null,null,null,null,null,null,"Benzo(a)antracen",7090]
[7092,"Benzo(a)antracen-sed.","mg/kg",null,null,null,null,null,null,null,null,null,null,null,null,null,null,null,null,null,null,"Benzo(a)antracen-sed.",7092]
[7100,"Krizen","µg/l",null,null,null,null,null,null,null,null,null,null,null,null,null,null,null,null,null,null,"Krizen",7100]
[7102,"Krizen-sed.","mg/kg",null,null,null,null,null,null,null,null,null,null,null,null,null,null,null,null,null,null,"Krizen-sed.",7102]
[7110,"benzo(b)fluoranten","ug/l",null,null,null,null,null,null,null,null,null,null,null,null,null,null,null,null,null,null,"benzo(b)fluoranten",7110]
[7112,"Benzo(b)fluoranten-sed.","mg/kg",null,null,null,null,null,null,null,null,null,null,null,null,null,null,null,null,null,null,"Benzo(b)fluoranten-sed.",7112]
[7120,"benzo(k)fluoranten","ug/l",null,null,null,null,null,null,null,null,null,null,null,null,null,null,null,null,null,null,"benzo(k)fluoranten",7120]
[7122,"Benzo(k)fluoranten-sed.","mg/kg",null,null,null,null,null,null,null,null,null,null,null,null,null,null,null,null,null,null,"Benzo(k)fluoranten-sed.",7122]
[7130,"benzo(a)piren","ug/l",null,null,null,null,null,null,null,null,null,null,null,null,null,null,null,null,null,null,"benzo(a)piren",7130]
[7132,"Benzo(a)piren-sed.","mg/kg",null,null,null,null,null,null,null,null,null,null,null,null,null,null,null,null,null,null,"Benzo(a)piren-sed.",7132]
[7140,"benzo(ghi)perilen","ug/l",null,null,null,null,null,null,null,null,null,null,null,null,null,null,null,null,null,null,"benzo(ghi)perilen",7140]
[7142,"Benzo(ghi)perilen-sed.","mg/kg",null,null,null,null,null,null,null,null,null,null,null,null,null,null,null,null,null,null,"Benzo(ghi)perilen-sed.",7142]
[7150,"Dibenzo(a,h)antracen","µg/l",null,null,null,null,null,null,null,null,null,null,null,null,null,null,null,null,null,null,"Dibenzo(a,h)antracen",7150]
[7152,"Dibenzo(a,h)antracen-sed.","mg/kg",null,null,null,null,null,null,null,null,null,null,null,null,null,null,null,null,null,null,"Dibenzo(a,h)antracen-sed.",7152]
[7160,"indeno(1,2,3-cd)piren","ug/l",null,null,null,null,null,null,null,null,null,null,null,null,null,null,null,null,null,null,"indeno(1,2,3-cd)piren",7160]
[7162,"Indeno(1,2,3-cd)piren-sed.","mg/kg",null,null,null,null,null,null,null,null,null,null,null,null,null,null,null,null,null,null,"Indeno(1,2,3-cd)piren-sed.",7162]
[7170,"PAO  skupaj","µg/l",null,null,null,null,null,null,null,null,null,null,null,null,null,null,null,null,null,null,"PAO  skupaj",7170]
[7180,"Policiklični aromatski ogljikovodiki - PAH - vsota","ug/l",null,null,null,null,null,null,null,null,null,null,null,null,null,null,null,null,null,null,"Policiklični aromatski ogljikovodiki - PAH - vsota",7180]
[7600,"Lahkohlapni aromatski ogljikovodiki - BTEX - vsota","ug/l",null,null,null,null,null,null,null,null,null,null,null,null,null,null,null,null,null,null,"Lahkohlapni aromatski ogljikovodiki - BTEX - vsota",7600]
[8010,"Kloroform ","ug/l",null,null,null,null,null,null,null,null,null,null,null,null,null,null,null,null,null,null,"Kloroform ",8010]
[8020,"Tribromometan","µg/l",null,null,null,null,null,null,null,null,null,null,null,null,null,null,null,null,null,null,"Tribromometan",8020]
[8030,"Bromdiklorometan","µg/l",null,null,null,null,null,null,null,null,null,null,null,null,null,null,null,null,null,null,"Bromdiklorometan",8030]
[8040,"Dibromklorometan","µg/l",null,null,null,null,null,null,null,null,null,null,null,null,null,null,null,null,null,null,"Dibromklorometan",8040]
[8050,"Triklornitrometan","µg/l",null,null,null,null,null,null,null,null,null,null,null,null,null,null,null,null,null,null,"Triklornitrometan",8050]
[8060,"Tetraklorometan ","ug/l",null,null,null,null,null,null,null,null,null,null,null,null,null,null,null,null,null,null,"Tetraklorometan ",8060]
[8070,"Diklorometan ","ug/l",null,null,null,null,null,null,null,null,null,null,null,null,null,null,null,null,null,null,"Diklorometan ",8070]
[8080,"1,1-Dikloroetan","µg/l",null,null,null,null,null,null,null,null,null,null,null,null,null,null,null,null,null,null,"1,1-Dikloroetan",8080]
[8090,"1,2- Dikloroetan","ug/l",null,null,null,null,null,null,null,null,null,null,null,null,null,null,null,null,null,null,"1,2- Dikloroetan",8090]
[8100,"1,1-Dikloroeten","µg/l",null,null,null,null,null,null,null,null,null,null,null,null,null,null,null,null,null,null,"1,1-Dikloroeten",8100]
[8110,"cis-1,2 - Dikloroeten","ug/l",null,null,null,null,null,null,null,null,null,null,null,null,null,null,null,null,null,null,"cis-1,2 - Dikloroeten",8110]
[8111,"cis-1,2-Dikloroeten","µg/l",null,null,null,null,null,null,null,null,null,null,null,null,null,null,null,null,null,null,"cis-1,2-Dikloroeten",8111]
[8112,"trans-1,2-Dikloroeten","µg/l",null,null,null,null,null,null,null,null,null,null,null,null,null,null,null,null,null,null,"trans-1,2-Dikloroeten",8112]
[8120,"Tetrakloroeten","ug/l",null,null,null,null,null,null,null,null,null,null,null,null,null,null,null,null,null,null,"Tetrakloroeten",8120]
[8130,"Trikloroeten","ug/l",null,null,null,null,null,null,null,null,null,null,null,null,null,null,null,null,null,null,"Trikloroeten",8130]
[8140,"1,1,1-trikloroetan","ug/l",null,null,null,null,null,null,null,null,null,null,null,null,null,null,null,null,null,null,"1,1,1-trikloroetan",8140]
[8150,"1,1,2-Trikloroetan","µg/l",null,null,null,null,null,null,null,null,null,null,null,null,null,null,null,null,null,null,"1,1,2-Trikloroetan",8150]
[8160,"1,1,2,2-Tetrakloroetan","µg/l",null,null,null,null,null,null,null,null,null,null,null,null,null,null,null,null,null,null,"1,1,2,2-Tetrakloroetan",8160]
[8170,"Triklorofluorometan","µg/l",null,null,null,null,null,null,null,null,null,null,null,null,null,null,null,null,null,null,"Triklorofluorometan",8170]
[8180,"Difluordiklorometan","µg/l",null,null,null,null,null,null,null,null,null,null,null,null,null,null,null,null,null,null,"Difluordiklorometan",8180]
[8185,"Lahkohlapni klorirani ogljikovodiki (LKCH) - vsota","ug/l Cl",null,null,null,null,null,null,null,null,null,null,null,null,null,null,null,null,null,null,"Lahkohlapni klorirani ogljikovodiki (LKCH) - vsota",8185]
[8190,"Benzen","ug/l",null,null,null,null,null,null,null,null,null,null,null,null,null,null,null,null,null,null,"Benzen",8190]
[8200,"Toulen","ug/l",null,null,null,null,null,null,null,null,null,null,null,null,null,null,null,null,null,null,"Toulen",8200]
[8210,"Ksilen (vsota o-, p-, m-)","ug/l",null,null,null,null,null,null,null,null,null,null,null,null,null,null,null,null,null,null,"Ksilen (vsota o-, p-, m-)",8210]
[8211,"m,p-Ksilen","µg/l",null,null,null,null,null,null,null,null,null,null,null,null,null,null,null,null,null,null,"m,p-Ksilen",8211]
[8212,"o-Ksilen","µg/l",null,null,null,null,null,null,null,null,null,null,null,null,null,null,null,null,null,null,"o-Ksilen",8212]
[8220,"Mezitilen","ug/l",null,null,null,null,null,null,null,null,null,null,null,null,null,null,null,null,null,null,"Mezitilen",8220]
[8250,"AOX","ug/l Cl",null,null,null,null,null,null,null,null,null,null,null,null,null,null,null,null,null,null,"AOX",8250]
[8260,"EOX","mg Cl/kg",null,null,null,null,null,null,null,null,null,null,null,null,null,null,null,null,null,null,"EOX",8260]
[8300,"Trihalometani - skupaj","µg/l",null,null,null,null,null,null,null,null,null,null,null,null,null,null,null,null,null,null,"Trihalometani - skupaj",8300]
[8430,"Etil benzen (vsota)","ug/l",null,null,null,null,null,null,null,null,null,null,null,null,null,null,null,null,null,null,"Etil benzen (vsota)",8430]
[8435,"1,2,4 Trimerilbenzen","µg/l",null,null,null,null,null,null,null,null,null,null,null,null,null,null,null,null,null,null,"1,2,4 Trimerilbenzen",8435]
[8800,"Akrilamid","mg/l",null,null,null,null,null,null,null,null,null,null,null,null,null,null,null,null,null,null,"Akrilamid",8800]
[8810,"Bromat","µg BrO3/l",null,null,null,null,null,null,null,null,null,null,null,null,null,null,null,null,null,null,"Bromat",8810]
[8820,"Epiklorhidrin","ug/l",null,null,null,null,null,null,null,null,null,null,null,null,null,null,null,null,null,null,"Epiklorhidrin",8820]
[8830,"Vinilklorid","µg/l",null,null,null,null,null,null,null,null,null,null,null,null,null,null,null,null,null,null,"Vinilklorid",8830]
[9010,"Skupne koliformne bakterije","MPN/100ml",null,null,null,null,null,null,null,null,null,null,null,null,null,null,null,null,null,null,"Skupne koliformne bakterije",9010]
[9020,"Koliformne bakterije fekalnega izvora","MPN/100ml",null,null,null,null,null,null,null,null,null,null,null,null,null,null,null,null,null,null,{"$f":"B588","v":"Koliformne bakterije fekalnega izvora"},{"$f":"A588","v":9020}]
[9030,"Skupno število aerobnih mezofilnih bakterij -220C","MPN/1ml",null,null,null,null,null,null,null,null,null,null,null,null,null,null,null,null,null,null,"Skupno število aerobnih mezofilnih bakterij -220C",9030]
[9040,"Skupno število aerobnih mezofilnih bakterij-37 0C","MPN/1ml",null,null,null,null,null,null,null,null,null,null,null,null,null,null,null,null,null,null,"Skupno število aerobnih mezofilnih bakterij-37 0C",9040]
[9050,"Streptokoki fekalnega izvora","MPN/100ml",null,null,null,null,null,null,null,null,null,null,null,null,null,null,null,null,null,null,"Streptokoki fekalnega izvora",9050]
[9060,"Proteus sp.","-",null,null,null,null,null,null,null,null,null,null,null,null,null,null,null,null,null,null,"Proteus sp.",9060]
[9070,"Sulfitreducirajoči klostridiji","-",null,null,null,null,null,null,null,null,null,null,null,null,null,null,null,null,null,null,"Sulfitreducirajoči klostridiji",9070]
[9080,"Pseudomonas aeruginosa","-",null,null,null,null,null,null,null,null,null,null,null,null,null,null,null,null,null,null,"Pseudomonas aeruginosa",9080]
[9081,"Salmonella","-",null,null,null,null,null,null,null,null,null,null,null,null,null,null,null,null,null,null,"Salmonella",9081]
[9090,"Clostridium perfringens (vključno s sporami)","CFU/100 ml",null,null,null,null,null,null,null,null,null,null,null,null,null,null,null,null,null,null,"Clostridium perfringens (vključno s sporami)",9090]
[9100,"Escherichia coli (E. coli)","CFU/100 ml",null,null,null,null,null,null,null,null,null,null,null,null,null,null,null,null,null,null,"Escherichia coli (E. coli)",9100]
[9110,"Intestinalni enterokoki","CFU/100 ml",null,null,null,null,null,null,null,null,null,null,null,null,null,null,null,null,null,null,"Intestinalni enterokoki",9110]
[9120,"Enterovirusi","PFU/10 l",null,null,null,null,null,null,null,null,null,null,null,null,null,null,null,null,null,null,"Enterovirusi",9120]
[9130,"Termotolerantni kampilobaktri","??",null,null,null,null,null,null,null,null,null,null,null,null,null,null,null,null,null,null,"Termotolerantni kampilobaktri",9130]
[12000,"Sulfamerazin","ug/L",null,null,null,null,null,null,null,null,null,null,null,null,null,null,null,null,null,null,"Sulfamerazin",12000]
[12002,"Trimetoprim","µg/L",null,null,null,null,null,null,null,null,null,null,null,null,null,null,null,null,null,null,"Trimetoprim",12002]
[12004,"Metoprolol","µg/L",null,null,null,null,null,null,null,null,null,null,null,null,null,null,null,null,null,null,"Metoprolol",12004]
[12006,"Betaksolol","µg/L",null,null,null,null,null,null,null,null,null,null,null,null,null,null,null,null,null,null,"Betaksolol",12006]
[12008,"Bezafibrat","µg/L",null,null,null,null,null,null,null,null,null,null,null,null,null,null,null,null,null,null,"Bezafibrat",12008]
[12010,"Diklofenak","µg/L",null,null,null,null,null,null,null,null,null,null,null,null,null,null,null,null,null,null,"Diklofenak",12010]
[12012,"Fenofibrat","µg/L",null,null,null,null,null,null,null,null,null,null,null,null,null,null,null,null,null,null,"Fenofibrat",12012]
[12014,"Fenoterol","µg/L",null,null,null,null,null,null,null,null,null,null,null,null,null,null,null,null,null,null,"Fenoterol",12014]
[12016,"Gemfibrozil","µg/L",null,null,null,null,null,null,null,null,null,null,null,null,null,null,null,null,null,null,"Gemfibrozil",12016]
[12018,"Indometacin","µg/L",null,null,null,null,null,null,null,null,null,null,null,null,null,null,null,null,null,null,"Indometacin",12018]
[12020,"Karbamazepin","µg/L",null,null,null,null,null,null,null,null,null,null,null,null,null,null,null,null,null,null,"Karbamazepin",12020]
[12022,"Ketoprofen","µg/L",null,null,null,null,null,null,null,null,null,null,null,null,null,null,null,null,null,null,"Ketoprofen",12022]
[12024,"Kofein","µg/L",null,null,null,null,null,null,null,null,null,null,null,null,null,null,null,null,null,null,"Kofein",12024]
[12026,"Kodein","µg/L",null,null,null,null,null,null,null,null,null,null,null,null,null,null,null,null,null,null,"Kodein",12026]
[12028,"Propanolol","µg/L",null,null,null,null,null,null,null,null,null,null,null,null,null,null,null,null,null,null,"Propanolol",12028]
[12030,"Paracetomol","µg/L",null,null,null,null,null,null,null,null,null,null,null,null,null,null,null,null,null,null,"Paracetomol",12030]
[12032,"Penicilin G","µg/L",null,null,null,null,null,null,null,null,null,null,null,null,null,null,null,null,null,null,"Penicilin G",12032]
[12034,"Sulfametoksazol","µg/L",null,null,null,null,null,null,null,null,null,null,null,null,null,null,null,null,null,null,"Sulfametoksazol",12034]
[12036,"Testosteron","µg/L",null,null,null,null,null,null,null,null,null,null,null,null,null,null,null,null,null,null,"Testosteron",12036]
[12038,"Teofilin","µg/L",null,null,null,null,null,null,null,null,null,null,null,null,null,null,null,null,null,null,"Teofilin",12038]
[13030,"Oksadiazon","ng/L",null,null,null,null,null,null,null,null,null,null,null,null,null,null,null,null,null,null,"Oksadiazon",13030]
[13035,"Trialat","ng/L",null,null,null,null,null,null,null,null,null,null,null,null,null,null,null,null,null,null,"Trialat",13035]